Workbook

Sheet Pořadí jednotlivců
A1: Pořadí | B1: Hráč | C1: Dráha 1 | F1: Dráha 2 | I1: Dráha 3 | L1: Dráha 4 | O1: CELKEM
C2: Plné | D2: Dor. | E2: Chyby | F2: Plné | G2: Dor. | H2: Chyby | I2: Plné | J2: Dor. | K2: Chyby | L2: Plné | M2: Dor. | N2: Chyby | O2: Plné | P2: Dor. | Q2: Chyby | R2: Celkový výkon
A3: 1. | B3: ='Záznamy hry'!B30 -> Novák Jan | C3: ='Záznamy hry'!C30 -> 95 | D3: ='Záznamy hry'!D30 -> 72 | E3: ='Záznamy hry'!E30 -> 1 | F3: ='Záznamy hry'!F30 -> 96 | G3: ='Záznamy hry'!G30 -> 52 | H3: ='Záznamy hry'!H30 -> 1 | I3: ='Záznamy hry'!I30 -> 102 | J3: ='Záznamy hry'!J30 -> 61 | K3: ='Záznamy hry'!K30 -> 0 | L3: ='Záznamy hry'!L30 -> 91 | M3: ='Záznamy hry'!M30 -> 53 | N3: ='Záznamy hry'!N30 -> 0 | O3: =C3+F3+I3+L3 -> 384 | P3: =D3+G3+J3+M3 -> 238 | Q3: =E3+H3+K3+N3 -> 2 | R3: =O3+P3 -> 622
A4: 2. | B4: ='Záznamy hry'!B35 -> Mašková Blanka | C4: ='Záznamy hry'!C35 -> 92 | D4: ='Záznamy hry'!D35 -> 45 | E4: ='Záznamy hry'!E35 -> 1 | F4: ='Záznamy hry'!F35 -> 107 | G4: ='Záznamy hry'!G35 -> 62 | H4: ='Záznamy hry'!H35 -> 2 | I4: ='Záznamy hry'!I35 -> 104 | J4: ='Záznamy hry'!J35 -> 42 | K4: ='Záznamy hry'!K35 -> 1 | L4: ='Záznamy hry'!L35 -> 98 | M4: ='Záznamy hry'!M35 -> 44 | N4: ='Záznamy hry'!N35 -> 0 | O4: =C4+F4+I4+L4 -> 401 | P4: =D4+G4+J4+M4 -> 193 | Q4: =E4+H4+K4+N4 -> 4 | R4: =O4+P4 -> 594
A5: 3. | B5: ='Záznamy hry'!B9 -> Dúška David | C5: ='Záznamy hry'!C9 -> 98 | D5: ='Záznamy hry'!D9 -> 53 | E5: ='Záznamy hry'!E9 -> 0 | F5: ='Záznamy hry'!F9 -> 100 | G5: ='Záznamy hry'!G9 -> 44 | H5: ='Záznamy hry'!H9 -> 1 | I5: ='Záznamy hry'!I9 -> 90 | J5: ='Záznamy hry'!J9 -> 50 | K5: ='Záznamy hry'!K9 -> 0 | L5: ='Záznamy hry'!L9 -> 95 | M5: ='Záznamy hry'!M9 -> 62 | N5: ='Záznamy hry'!N9 -> 0 | O5: =C5+F5+I5+L5 -> 383 | P5: =D5+G5+J5+M5 -> 209 | Q5: =E5+H5+K5+N5 -> 1 | R5: =O5+P5 -> 592
A6: 4. | B6: ='Záznamy hry'!B23 -> Dvořák Zdeněk | C6: ='Záznamy hry'!C23 -> 95 | D6: ='Záznamy hry'!D23 -> 68 | E6: ='Záznamy hry'!E23 -> 0 | F6: ='Záznamy hry'!F23 -> 91 | G6: ='Záznamy hry'!G23 -> 36 | H6: ='Záznamy hry'!H23 -> 0 | I6: ='Záznamy hry'!I23 -> 86 | J6: ='Záznamy hry'!J23 -> 34 | K6: ='Záznamy hry'!K23 -> 3 | L6: ='Záznamy hry'!L23 -> 110 | M6: ='Záznamy hry'!M23 -> 68 | N6: ='Záznamy hry'!N23 -> 0 | O6: =C6+F6+I6+L6 -> 382 | P6: =D6+G6+J6+M6 -> 206 | Q6: =E6+H6+K6+N6 -> 3 | R6: =O6+P6 -> 588
A7: 5. | B7: ='Záznamy hry'!B43 -> Kučera Vladimír | C7: ='Záznamy hry'!C43 -> 103 | D7: ='Záznamy hry'!D43 -> 62 | E7: ='Záznamy hry'!E43 -> 1 | F7: ='Záznamy hry'!F43 -> 95 | G7: ='Záznamy hry'!G43 -> 51 | H7: ='Záznamy hry'!H43 -> 0 | I7: ='Záznamy hry'!I43 -> 86 | J7: ='Záznamy hry'!J43 -> 49 | K7: ='Záznamy hry'!K43 -> 2 | L7: ='Záznamy hry'!L43 -> 88 | M7: ='Záznamy hry'!M43 -> 53 | N7: ='Záznamy hry'!N43 -> 0 | O7: =C7+F7+I7+L7 -> 372 | P7: =D7+G7+J7+M7 -> 215 | Q7: =E7+H7+K7+N7 -> 3 | R7: =O7+P7 -> 587
A8: 6. | B8: ='Záznamy hry'!B55 -> Takáč Ladislav | C8: ='Záznamy hry'!C55 -> 95 | D8: ='Záznamy hry'!D55 -> 57 | E8: ='Záznamy hry'!E55 -> 0 | F8: ='Záznamy hry'!F55 -> 97 | G8: ='Záznamy hry'!G55 -> 43 | H8: ='Záznamy hry'!H55 -> 0 | I8: ='Záznamy hry'!I55 -> 84 | J8: ='Záznamy hry'!J55 -> 60 | K8: ='Záznamy hry'!K55 -> 0 | L8: ='Záznamy hry'!L55 -> 101 | M8: ='Záznamy hry'!M55 -> 44 | N8: ='Záznamy hry'!N55 -> 2 | O8: =C8+F8+I8+L8 -> 377 | P8: =D8+G8+J8+M8 -> 204 | Q8: =E8+H8+K8+N8 -> 2 | R8: =O8+P8 -> 581
A9: 7. | B9: ='Záznamy hry'!B52 -> Filakovský Martin | C9: ='Záznamy hry'!C52 -> 98 | D9: ='Záznamy hry'!D52 -> 53 | E9: ='Záznamy hry'!E52 -> 0 | F9: ='Záznamy hry'!F52 -> 94 | G9: ='Záznamy hry'!G52 -> 44 | H9: ='Záznamy hry'!H52 -> 1 | I9: ='Záznamy hry'!I52 -> 97 | J9: ='Záznamy hry'!J52 -> 54 | K9: ='Záznamy hry'!K52 -> 0 | L9: ='Záznamy hry'!L52 -> 87 | M9: ='Záznamy hry'!M52 -> 50 | N9: ='Záznamy hry'!N52 -> 1 | O9: =C9+F9+I9+L9 -> 376 | P9: =D9+G9+J9+M9 -> 201 | Q9: =E9+H9+K9+N9 -> 2 | R9: =O9+P9 -> 577
A10: 8. | B10: ='Záznamy hry'!B57 -> Smažík Karel | C10: ='Záznamy hry'!C57 -> 97 | D10: ='Záznamy hry'!D57 -> 54 | E10: ='Záznamy hry'!E57 -> 0 | F10: ='Záznamy hry'!F57 -> 84 | G10: ='Záznamy hry'!G57 -> 54 | H10: ='Záznamy hry'!H57 -> 2 | I10: ='Záznamy hry'!I57 -> 97 | J10: ='Záznamy hry'!J57 -> 52 | K10: ='Záznamy hry'!K57 -> 1 | L10: ='Záznamy hry'!L57 -> 93 | M10: ='Záznamy hry'!M57 -> 45 | N10: ='Záznamy hry'!N57 -> 0 | O10: =C10+F10+I10+L10 -> 371 | P10: =D10+G10+J10+M10 -> 205 | Q10: =E10+H10+K10+N10 -> 3 | R10: =O10+P10 -> 576
A11: 9. | B11: ='Záznamy hry'!B7 -> Ouhel Jiří . | C11: ='Záznamy hry'!C7 -> 95 | D11: ='Záznamy hry'!D7 -> 45 | E11: ='Záznamy hry'!E7 -> 2 | F11: ='Záznamy hry'!F7 -> 99 | G11: ='Záznamy hry'!G7 -> 35 | H11: ='Záznamy hry'!H7 -> 3 | I11: ='Záznamy hry'!I7 -> 97 | J11: ='Záznamy hry'!J7 -> 54 | K11: ='Záznamy hry'!K7 -> 1 | L11: ='Záznamy hry'!L7 -> 91 | M11: ='Záznamy hry'!M7 -> 58 | N11: ='Záznamy hry'!N7 -> 0 | O11: =C11+F11+I11+L11 -> 382 | P11: =D11+G11+J11+M11 -> 192 | Q11: =E11+H11+K11+N11 -> 6 | R11: =O11+P11 -> 574
A12: 10. | B12: ='Záznamy hry'!B51 -> Kášek David | C12: ='Záznamy hry'!C51 -> 96 | D12: ='Záznamy hry'!D51 -> 48 | E12: ='Záznamy hry'!E51 -> 1 | F12: ='Záznamy hry'!F51 -> 106 | G12: ='Záznamy hry'!G51 -> 53 | H12: ='Záznamy hry'!H51 -> 1 | I12: ='Záznamy hry'!I51 -> 88 | J12: ='Záznamy hry'!J51 -> 44 | K12: ='Záznamy hry'!K51 -> 0 | L12: ='Záznamy hry'!L51 -> 94 | M12: ='Záznamy hry'!M51 -> 43 | N12: ='Záznamy hry'!N51 -> 2 | O12: =C12+F12+I12+L12 -> 384 | P12: =D12+G12+J12+M12 -> 188 | Q12: =E12+H12+K12+N12 -> 4 | R12: =O12+P12 -> 572
A13: 11. | B13: ='Záznamy hry'!B59 -> Soukup Martin | C13: ='Záznamy hry'!C59 -> 109 | D13: ='Záznamy hry'!D59 -> 53 | E13: ='Záznamy hry'!E59 -> 2 | F13: ='Záznamy hry'!F59 -> 96 | G13: ='Záznamy hry'!G59 -> 35 | H13: ='Záznamy hry'!H59 -> 4 | I13: ='Záznamy hry'!I59 -> 87 | J13: ='Záznamy hry'!J59 -> 44 | K13: ='Záznamy hry'!K59 -> 0 | L13: ='Záznamy hry'!L59 -> 95 | M13: ='Záznamy hry'!M59 -> 45 | N13: ='Záznamy hry'!N59 -> 0 | O13: =C13+F13+I13+L13 -> 387 | P13: =D13+G13+J13+M13 -> 177 | Q13: =E13+H13+K13+N13 -> 6 | R13: =O13+P13 -> 564
A14: 12. | B14: ='Záznamy hry'!B58 -> Jelínek Bořivoj | C14: ='Záznamy hry'!C58 -> 97 | D14: ='Záznamy hry'!D58 -> 52 | E14: ='Záznamy hry'!E58 -> 1 | F14: ='Záznamy hry'!F58 -> 100 | G14: ='Záznamy hry'!G58 -> 42 | H14: ='Záznamy hry'!H58 -> 1 | I14: ='Záznamy hry'!I58 -> 89 | J14: ='Záznamy hry'!J58 -> 45 | K14: ='Záznamy hry'!K58 -> 0 | L14: ='Záznamy hry'!L58 -> 83 | M14: ='Záznamy hry'!M58 -> 52 | N14: ='Záznamy hry'!N58 -> 2 | O14: =C14+F14+I14+L14 -> 369 | P14: =D14+G14+J14+M14 -> 191 | Q14: =E14+H14+K14+N14 -> 4 | R14: =O14+P14 -> 560
A15: 13. | B15: ='Záznamy hry'!B42 -> Makovec Pavel | C15: ='Záznamy hry'!C42 -> 85 | D15: ='Záznamy hry'!D42 -> 60 | E15: ='Záznamy hry'!E42 -> 1 | F15: ='Záznamy hry'!F42 -> 88 | G15: ='Záznamy hry'!G42 -> 51 | H15: ='Záznamy hry'!H42 -> 0 | I15: ='Záznamy hry'!I42 -> 88 | J15: ='Záznamy hry'!J42 -> 54 | K15: ='Záznamy hry'!K42 -> 0 | L15: ='Záznamy hry'!L42 -> 90 | M15: ='Záznamy hry'!M42 -> 43 | N15: ='Záznamy hry'!N42 -> 0 | O15: =C15+F15+I15+L15 -> 351 | P15: =D15+G15+J15+M15 -> 208 | Q15: =E15+H15+K15+N15 -> 1 | R15: =O15+P15 -> 559
A16: 14. | B16: ='Záznamy hry'!B10 -> Ouhel Jakub | C16: ='Záznamy hry'!C10 -> 88 | D16: ='Záznamy hry'!D10 -> 44 | E16: ='Záznamy hry'!E10 -> 0 | F16: ='Záznamy hry'!F10 -> 99 | G16: ='Záznamy hry'!G10 -> 45 | H16: ='Záznamy hry'!H10 -> 2 | I16: ='Záznamy hry'!I10 -> 94 | J16: ='Záznamy hry'!J10 -> 54 | K16: ='Záznamy hry'!K10 -> 0 | L16: ='Záznamy hry'!L10 -> 94 | M16: ='Záznamy hry'!M10 -> 41 | N16: ='Záznamy hry'!N10 -> 2 | O16: =C16+F16+I16+L16 -> 375 | P16: =D16+G16+J16+M16 -> 184 | Q16: =E16+H16+K16+N16 -> 4 | R16: =O16+P16 -> 559
A17: 15. | B17: ='Záznamy hry'!B54 -> Bystřický Petr | C17: ='Záznamy hry'!C54 -> 91 | D17: ='Záznamy hry'!D54 -> 53 | E17: ='Záznamy hry'!E54 -> 1 | F17: ='Záznamy hry'!F54 -> 99 | G17: ='Záznamy hry'!G54 -> 51 | H17: ='Záznamy hry'!H54 -> 2 | I17: ='Záznamy hry'!I54 -> 87 | J17: ='Záznamy hry'!J54 -> 42 | K17: ='Záznamy hry'!K54 -> 1 | L17: ='Záznamy hry'!L54 -> 93 | M17: ='Záznamy hry'!M54 -> 42 | N17: ='Záznamy hry'!N54 -> 0 | O17: =C17+F17+I17+L17 -> 370 | P17: =D17+G17+J17+M17 -> 188 | Q17: =E17+H17+K17+N17 -> 4 | R17: =O17+P17 -> 558
A18: 16. | B18: ='Záznamy hry'!B24 -> Dvořák Miroslav | C18: ='Záznamy hry'!C24 -> 100 | D18: ='Záznamy hry'!D24 -> 68 | E18: ='Záznamy hry'!E24 -> 0 | F18: ='Záznamy hry'!F24 -> 95 | G18: ='Záznamy hry'!G24 -> 41 | H18: ='Záznamy hry'!H24 -> 2 | I18: ='Záznamy hry'!I24 -> 94 | J18: ='Záznamy hry'!J24 -> 35 | K18: ='Záznamy hry'!K24 -> 2 | L18: ='Záznamy hry'!L24 -> 82 | M18: ='Záznamy hry'!M24 -> 43 | N18: ='Záznamy hry'!N24 -> 2 | O18: =C18+F18+I18+L18 -> 371 | P18: =D18+G18+J18+M18 -> 187 | Q18: =E18+H18+K18+N18 -> 6 | R18: =O18+P18 -> 558
A19: 17. | B19: ='Záznamy hry'!B25 -> Dvořák Zbyněk | C19: ='Záznamy hry'!C25 -> 91 | D19: ='Záznamy hry'!D25 -> 45 | E19: ='Záznamy hry'!E25 -> 1 | F19: ='Záznamy hry'!F25 -> 102 | G19: ='Záznamy hry'!G25 -> 44 | H19: ='Záznamy hry'!H25 -> 1 | I19: ='Záznamy hry'!I25 -> 83 | J19: ='Záznamy hry'!J25 -> 50 | K19: ='Záznamy hry'!K25 -> 1 | L19: ='Záznamy hry'!L25 -> 96 | M19: ='Záznamy hry'!M25 -> 44 | N19: ='Záznamy hry'!N25 -> 0 | O19: =C19+F19+I19+L19 -> 372 | P19: =D19+G19+J19+M19 -> 183 | Q19: =E19+H19+K19+N19 -> 3 | R19: =O19+P19 -> 555
A20: 18. | B20: ='Záznamy hry'!B81 -> Mertlová Petra | C20: ='Záznamy hry'!C81 -> 93 | D20: ='Záznamy hry'!D81 -> 27 | E20: ='Záznamy hry'!E81 -> 5 | F20: ='Záznamy hry'!F81 -> 84 | G20: ='Záznamy hry'!G81 -> 52 | H20: ='Záznamy hry'!H81 -> 1 | I20: ='Záznamy hry'!I81 -> 99 | J20: ='Záznamy hry'!J81 -> 45 | K20: ='Záznamy hry'!K81 -> 2 | L20: ='Záznamy hry'!L81 -> 100 | M20: ='Záznamy hry'!M81 -> 52 | N20: ='Záznamy hry'!N81 -> 0 | O20: =C20+F20+I20+L20 -> 376 | P20: =D20+G20+J20+M20 -> 176 | Q20: =E20+H20+K20+N20 -> 8 | R20: =O20+P20 -> 552
A21: 19. | B21: ='Záznamy hry'!B79 -> Chvátal Marek | C21: ='Záznamy hry'!C79 -> 94 | D21: ='Záznamy hry'!D79 -> 45 | E21: ='Záznamy hry'!E79 -> 3 | F21: ='Záznamy hry'!F79 -> 99 | G21: ='Záznamy hry'!G79 -> 43 | H21: ='Záznamy hry'!H79 -> 1 | I21: ='Záznamy hry'!I79 -> 95 | J21: ='Záznamy hry'!J79 -> 36 | K21: ='Záznamy hry'!K79 -> 1 | L21: ='Záznamy hry'!L79 -> 93 | M21: ='Záznamy hry'!M79 -> 45 | N21: ='Záznamy hry'!N79 -> 1 | O21: =C21+F21+I21+L21 -> 381 | P21: =D21+G21+J21+M21 -> 169 | Q21: =E21+H21+K21+N21 -> 6 | R21: =O21+P21 -> 550
A22: 20. | B22: ='Záznamy hry'!B4 -> Fořter Jan | C22: ='Záznamy hry'!C4 -> 92 | D22: ='Záznamy hry'!D4 -> 50 | E22: ='Záznamy hry'!E4 -> 2 | F22: ='Záznamy hry'!F4 -> 91 | G22: ='Záznamy hry'!G4 -> 54 | H22: ='Záznamy hry'!H4 -> 2 | I22: ='Záznamy hry'!I4 -> 90 | J22: ='Záznamy hry'!J4 -> 45 | K22: ='Záznamy hry'!K4 -> 1 | L22: ='Záznamy hry'!L4 -> 96 | M22: ='Záznamy hry'!M4 -> 31 | N22: ='Záznamy hry'!N4 -> 2 | O22: =C22+F22+I22+L22 -> 369 | P22: =D22+G22+J22+M22 -> 180 | Q22: =E22+H22+K22+N22 -> 7 | R22: =O22+P22 -> 549
A23: 21. | B23: ='Záznamy hry'!B3 -> Hein Zbyněk | C23: ='Záznamy hry'!C3 -> 87 | D23: ='Záznamy hry'!D3 -> 36 | E23: ='Záznamy hry'!E3 -> 2 | F23: ='Záznamy hry'!F3 -> 100 | G23: ='Záznamy hry'!G3 -> 52 | H23: ='Záznamy hry'!H3 -> 1 | I23: ='Záznamy hry'!I3 -> 94 | J23: ='Záznamy hry'!J3 -> 42 | K23: ='Záznamy hry'!K3 -> 1 | L23: ='Záznamy hry'!L3 -> 93 | M23: ='Záznamy hry'!M3 -> 45 | N23: ='Záznamy hry'!N3 -> 3 | O23: =C23+F23+I23+L23 -> 374 | P23: =D23+G23+J23+M23 -> 175 | Q23: =E23+H23+K23+N23 -> 7 | R23: =O23+P23 -> 549
A24: 22. | B24: ='Záznamy hry'!B80 -> Pýchová Barbora | C24: ='Záznamy hry'!C80 -> 87 | D24: ='Záznamy hry'!D80 -> 44 | E24: ='Záznamy hry'!E80 -> 1 | F24: ='Záznamy hry'!F80 -> 92 | G24: ='Záznamy hry'!G80 -> 53 | H24: ='Záznamy hry'!H80 -> 2 | I24: ='Záznamy hry'!I80 -> 101 | J24: ='Záznamy hry'!J80 -> 44 | K24: ='Záznamy hry'!K80 -> 0 | L24: ='Záznamy hry'!L80 -> 83 | M24: ='Záznamy hry'!M80 -> 43 | N24: ='Záznamy hry'!N80 -> 1 | O24: =C24+F24+I24+L24 -> 363 | P24: =D24+G24+J24+M24 -> 184 | Q24: =E24+H24+K24+N24 -> 4 | R24: =O24+P24 -> 547
A25: 23. | B25: ='Záznamy hry'!B56 -> Chval Petr | C25: ='Záznamy hry'!C56 -> 89 | D25: ='Záznamy hry'!D56 -> 53 | E25: ='Záznamy hry'!E56 -> 1 | F25: ='Záznamy hry'!F56 -> 85 | G25: ='Záznamy hry'!G56 -> 45 | H25: ='Záznamy hry'!H56 -> 1 | I25: ='Záznamy hry'!I56 -> 92 | J25: ='Záznamy hry'!J56 -> 42 | K25: ='Záznamy hry'!K56 -> 1 | L25: ='Záznamy hry'!L56 -> 103 | M25: ='Záznamy hry'!M56 -> 36 | N25: ='Záznamy hry'!N56 -> 0 | O25: =C25+F25+I25+L25 -> 369 | P25: =D25+G25+J25+M25 -> 176 | Q25: =E25+H25+K25+N25 -> 3 | R25: =O25+P25 -> 545
A26: 24. | B26: ='Záznamy hry'!B31 -> Kobliha Vítek | C26: ='Záznamy hry'!C31 -> 88 | D26: ='Záznamy hry'!D31 -> 36 | E26: ='Záznamy hry'!E31 -> 1 | F26: ='Záznamy hry'!F31 -> 89 | G26: ='Záznamy hry'!G31 -> 52 | H26: ='Záznamy hry'!H31 -> 1 | I26: ='Záznamy hry'!I31 -> 88 | J26: ='Záznamy hry'!J31 -> 54 | K26: ='Záznamy hry'!K31 -> 0 | L26: ='Záznamy hry'!L31 -> 88 | M26: ='Záznamy hry'!M31 -> 49 | N26: ='Záznamy hry'!N31 -> 0 | O26: =C26+F26+I26+L26 -> 353 | P26: =D26+G26+J26+M26 -> 191 | Q26: =E26+H26+K26+N26 -> 2 | R26: =O26+P26 -> 544
A27: 25. | B27: ='Záznamy hry'!B27 -> Vrbík Pavel | C27: ='Záznamy hry'!C27 -> 89 | D27: ='Záznamy hry'!D27 -> 51 | E27: ='Záznamy hry'!E27 -> 2 | F27: ='Záznamy hry'!F27 -> 86 | G27: ='Záznamy hry'!G27 -> 60 | H27: ='Záznamy hry'!H27 -> 0 | I27: ='Záznamy hry'!I27 -> 89 | J27: ='Záznamy hry'!J27 -> 41 | K27: ='Záznamy hry'!K27 -> 0 | L27: ='Záznamy hry'!L27 -> 92 | M27: ='Záznamy hry'!M27 -> 35 | N27: ='Záznamy hry'!N27 -> 1 | O27: =C27+F27+I27+L27 -> 356 | P27: =D27+G27+J27+M27 -> 187 | Q27: =E27+H27+K27+N27 -> 3 | R27: =O27+P27 -> 543
A28: 26. | B28: ='Záznamy hry'!B39 -> Křemen Petr | C28: ='Záznamy hry'!C39 -> 82 | D28: ='Záznamy hry'!D39 -> 45 | E28: ='Záznamy hry'!E39 -> 1 | F28: ='Záznamy hry'!F39 -> 100 | G28: ='Záznamy hry'!G39 -> 44 | H28: ='Záznamy hry'!H39 -> 0 | I28: ='Záznamy hry'!I39 -> 96 | J28: ='Záznamy hry'!J39 -> 43 | K28: ='Záznamy hry'!K39 -> 3 | L28: ='Záznamy hry'!L39 -> 89 | M28: ='Záznamy hry'!M39 -> 41 | N28: ='Záznamy hry'!N39 -> 1 | O28: =C28+F28+I28+L28 -> 367 | P28: =D28+G28+J28+M28 -> 173 | Q28: =E28+H28+K28+N28 -> 5 | R28: =O28+P28 -> 540
A29: 27. | B29: ='Záznamy hry'!B63 -> Korecká Jitka | C29: ='Záznamy hry'!C63 -> 83 | D29: ='Záznamy hry'!D63 -> 49 | E29: ='Záznamy hry'!E63 -> 0 | F29: ='Záznamy hry'!F63 -> 98 | G29: ='Záznamy hry'!G63 -> 36 | H29: ='Záznamy hry'!H63 -> 2 | I29: ='Záznamy hry'!I63 -> 99 | J29: ='Záznamy hry'!J63 -> 43 | K29: ='Záznamy hry'!K63 -> 1 | L29: ='Záznamy hry'!L63 -> 88 | M29: ='Záznamy hry'!M63 -> 44 | N29: ='Záznamy hry'!N63 -> 0 | O29: =C29+F29+I29+L29 -> 368 | P29: =D29+G29+J29+M29 -> 172 | Q29: =E29+H29+K29+N29 -> 3 | R29: =O29+P29 -> 540
A30: 28. | B30: ='Záznamy hry'!B8 -> Dúška Karel | C30: ='Záznamy hry'!C8 -> 86 | D30: ='Záznamy hry'!D8 -> 36 | E30: ='Záznamy hry'!E8 -> 0 | F30: ='Záznamy hry'!F8 -> 95 | G30: ='Záznamy hry'!G8 -> 50 | H30: ='Záznamy hry'!H8 -> 1 | I30: ='Záznamy hry'!I8 -> 88 | J30: ='Záznamy hry'!J8 -> 52 | K30: ='Záznamy hry'!K8 -> 1 | L30: ='Záznamy hry'!L8 -> 88 | M30: ='Záznamy hry'!M8 -> 44 | N30: ='Záznamy hry'!N8 -> 0 | O30: =C30+F30+I30+L30 -> 357 | P30: =D30+G30+J30+M30 -> 182 | Q30: =E30+H30+K30+N30 -> 2 | R30: =O30+P30 -> 539
A31: 29. | B31: ='Záznamy hry'!B66 -> Nedomová Drahomíra | C31: ='Záznamy hry'!C66 -> 94 | D31: ='Záznamy hry'!D66 -> 35 | E31: ='Záznamy hry'!E66 -> 5 | F31: ='Záznamy hry'!F66 -> 87 | G31: ='Záznamy hry'!G66 -> 43 | H31: ='Záznamy hry'!H66 -> 1 | I31: ='Záznamy hry'!I66 -> 102 | J31: ='Záznamy hry'!J66 -> 45 | K31: ='Záznamy hry'!K66 -> 1 | L31: ='Záznamy hry'!L66 -> 97 | M31: ='Záznamy hry'!M66 -> 36 | N31: ='Záznamy hry'!N66 -> 2 | O31: =C31+F31+I31+L31 -> 380 | P31: =D31+G31+J31+M31 -> 159 | Q31: =E31+H31+K31+N31 -> 9 | R31: =O31+P31 -> 539
A32: 30. | B32: ='Záznamy hry'!B65 -> Koubek Karel | C32: ='Záznamy hry'!C65 -> 91 | D32: ='Záznamy hry'!D65 -> 45 | E32: ='Záznamy hry'!E65 -> 1 | F32: ='Záznamy hry'!F65 -> 105 | G32: ='Záznamy hry'!G65 -> 35 | H32: ='Záznamy hry'!H65 -> 3 | I32: ='Záznamy hry'!I65 -> 83 | J32: ='Záznamy hry'!J65 -> 54 | K32: ='Záznamy hry'!K65 -> 0 | L32: ='Záznamy hry'!L65 -> 89 | M32: ='Záznamy hry'!M65 -> 35 | N32: ='Záznamy hry'!N65 -> 3 | O32: =C32+F32+I32+L32 -> 368 | P32: =D32+G32+J32+M32 -> 169 | Q32: =E32+H32+K32+N32 -> 7 | R32: =O32+P32 -> 537
A33: 31. | B33: ='Záznamy hry'!B44 -> Zeman Zdeněk | C33: ='Záznamy hry'!C44 -> 94 | D33: ='Záznamy hry'!D44 -> 53 | E33: ='Záznamy hry'!E44 -> 1 | F33: ='Záznamy hry'!F44 -> 91 | G33: ='Záznamy hry'!G44 -> 47 | H33: ='Záznamy hry'!H44 -> 0 | I33: ='Záznamy hry'!I44 -> 80 | J33: ='Záznamy hry'!J44 -> 43 | K33: ='Záznamy hry'!K44 -> 0 | L33: ='Záznamy hry'!L44 -> 87 | M33: ='Záznamy hry'!M44 -> 39 | N33: ='Záznamy hry'!N44 -> 1 | O33: =C33+F33+I33+L33 -> 352 | P33: =D33+G33+J33+M33 -> 182 | Q33: =E33+H33+K33+N33 -> 2 | R33: =O33+P33 -> 534
A34: 32. | B34: ='Záznamy hry'!B19 -> Svačina Jiří | C34: ='Záznamy hry'!C19 -> 88 | D34: ='Záznamy hry'!D19 -> 45 | E34: ='Záznamy hry'!E19 -> 0 | F34: ='Záznamy hry'!F19 -> 84 | G34: ='Záznamy hry'!G19 -> 51 | H34: ='Záznamy hry'!H19 -> 0 | I34: ='Záznamy hry'!I19 -> 84 | J34: ='Záznamy hry'!J19 -> 44 | K34: ='Záznamy hry'!K19 -> 1 | L34: ='Záznamy hry'!L19 -> 84 | M34: ='Záznamy hry'!M19 -> 53 | N34: ='Záznamy hry'!N19 -> 1 | O34: =C34+F34+I34+L34 -> 340 | P34: =D34+G34+J34+M34 -> 193 | Q34: =E34+H34+K34+N34 -> 2 | R34: =O34+P34 -> 533
A35: 33. | B35: ='Záznamy hry'!B46 -> Kořínek Pavel | C35: ='Záznamy hry'!C46 -> 108 | D35: ='Záznamy hry'!D46 -> 34 | E35: ='Záznamy hry'!E46 -> 3 | F35: ='Záznamy hry'!F46 -> 94 | G35: ='Záznamy hry'!G46 -> 26 | H35: ='Záznamy hry'!H46 -> 5 | I35: ='Záznamy hry'!I46 -> 89 | J35: ='Záznamy hry'!J46 -> 51 | K35: ='Záznamy hry'!K46 -> 1 | L35: ='Záznamy hry'!L46 -> 95 | M35: ='Záznamy hry'!M46 -> 36 | N35: ='Záznamy hry'!N46 -> 2 | O35: =C35+F35+I35+L35 -> 386 | P35: =D35+G35+J35+M35 -> 147 | Q35: =E35+H35+K35+N35 -> 11 | R35: =O35+P35 -> 533
A36: 34. | B36: ='Záznamy hry'!B49 -> Štefan Jan | C36: ='Záznamy hry'!C49 -> 99 | D36: ='Záznamy hry'!D49 -> 35 | E36: ='Záznamy hry'!E49 -> 2 | F36: ='Záznamy hry'!F49 -> 80 | G36: ='Záznamy hry'!G49 -> 51 | H36: ='Záznamy hry'!H49 -> 1 | I36: ='Záznamy hry'!I49 -> 89 | J36: ='Záznamy hry'!J49 -> 36 | K36: ='Záznamy hry'!K49 -> 0 | L36: ='Záznamy hry'!L49 -> 89 | M36: ='Záznamy hry'!M49 -> 53 | N36: ='Záznamy hry'!N49 -> 0 | O36: =C36+F36+I36+L36 -> 357 | P36: =D36+G36+J36+M36 -> 175 | Q36: =E36+H36+K36+N36 -> 3 | R36: =O36+P36 -> 532
A37: 35. | B37: ='Záznamy hry'!B29 -> Mikuláštík Michal | C37: ='Záznamy hry'!C29 -> 88 | D37: ='Záznamy hry'!D29 -> 32 | E37: ='Záznamy hry'!E29 -> 6 | F37: ='Záznamy hry'!F29 -> 104 | G37: ='Záznamy hry'!G29 -> 54 | H37: ='Záznamy hry'!H29 -> 0 | I37: ='Záznamy hry'!I29 -> 86 | J37: ='Záznamy hry'!J29 -> 33 | K37: ='Záznamy hry'!K29 -> 3 | L37: ='Záznamy hry'!L29 -> 99 | M37: ='Záznamy hry'!M29 -> 35 | N37: ='Záznamy hry'!N29 -> 3 | O37: =C37+F37+I37+L37 -> 377 | P37: =D37+G37+J37+M37 -> 154 | Q37: =E37+H37+K37+N37 -> 12 | R37: =O37+P37 -> 531
A38: 36. | B38: ='Záznamy hry'!B6 -> Bartoň Jan | C38: ='Záznamy hry'!C6 -> 97 | D38: ='Záznamy hry'!D6 -> 32 | E38: ='Záznamy hry'!E6 -> 3 | F38: ='Záznamy hry'!F6 -> 91 | G38: ='Záznamy hry'!G6 -> 40 | H38: ='Záznamy hry'!H6 -> 2 | I38: ='Záznamy hry'!I6 -> 86 | J38: ='Záznamy hry'!J6 -> 45 | K38: ='Záznamy hry'!K6 -> 1 | L38: ='Záznamy hry'!L6 -> 95 | M38: ='Záznamy hry'!M6 -> 43 | N38: ='Záznamy hry'!N6 -> 0 | O38: =C38+F38+I38+L38 -> 369 | P38: =D38+G38+J38+M38 -> 160 | Q38: =E38+H38+K38+N38 -> 6 | R38: =O38+P38 -> 529
A39: 37. | B39: ='Záznamy hry'!B77 -> Návarová Věra | C39: ='Záznamy hry'!C77 -> 88 | D39: ='Záznamy hry'!D77 -> 50 | E39: ='Záznamy hry'!E77 -> 2 | F39: ='Záznamy hry'!F77 -> 84 | G39: ='Záznamy hry'!G77 -> 45 | H39: ='Záznamy hry'!H77 -> 1 | I39: ='Záznamy hry'!I77 -> 97 | J39: ='Záznamy hry'!J77 -> 34 | K39: ='Záznamy hry'!K77 -> 2 | L39: ='Záznamy hry'!L77 -> 88 | M39: ='Záznamy hry'!M77 -> 42 | N39: ='Záznamy hry'!N77 -> 2 | O39: =C39+F39+I39+L39 -> 357 | P39: =D39+G39+J39+M39 -> 171 | Q39: =E39+H39+K39+N39 -> 7 | R39: =O39+P39 -> 528
A40: 38. | B40: ='Záznamy hry'!B71 -> Vychodil Jaroslav | C40: ='Záznamy hry'!C71 -> 84 | D40: ='Záznamy hry'!D71 -> 43 | E40: ='Záznamy hry'!E71 -> 0 | F40: ='Záznamy hry'!F71 -> 79 | G40: ='Záznamy hry'!G71 -> 44 | H40: ='Záznamy hry'!H71 -> 2 | I40: ='Záznamy hry'!I71 -> 91 | J40: ='Záznamy hry'!J71 -> 35 | K40: ='Záznamy hry'!K71 -> 1 | L40: ='Záznamy hry'!L71 -> 97 | M40: ='Záznamy hry'!M71 -> 54 | N40: ='Záznamy hry'!N71 -> 0 | O40: =C40+F40+I40+L40 -> 351 | P40: =D40+G40+J40+M40 -> 176 | Q40: =E40+H40+K40+N40 -> 3 | R40: =O40+P40 -> 527
A41: 39. | B41: ='Záznamy hry'!B60 -> Šimková Jitka | C41: ='Záznamy hry'!C60 -> 91 | D41: ='Záznamy hry'!D60 -> 54 | E41: ='Záznamy hry'!E60 -> 1 | F41: ='Záznamy hry'!F60 -> 82 | G41: ='Záznamy hry'!G60 -> 45 | H41: ='Záznamy hry'!H60 -> 1 | I41: ='Záznamy hry'!I60 -> 87 | J41: ='Záznamy hry'!J60 -> 31 | K41: ='Záznamy hry'!K60 -> 4 | L41: ='Záznamy hry'!L60 -> 85 | M41: ='Záznamy hry'!M60 -> 51 | N41: ='Záznamy hry'!N60 -> 2 | O41: =C41+F41+I41+L41 -> 345 | P41: =D41+G41+J41+M41 -> 181 | Q41: =E41+H41+K41+N41 -> 8 | R41: =O41+P41 -> 526
A42: 40. | B42: ='Záznamy hry'!B5 -> Hrstka Libor | C42: ='Záznamy hry'!C5 -> 85 | D42: ='Záznamy hry'!D5 -> 41 | E42: ='Záznamy hry'!E5 -> 1 | F42: ='Záznamy hry'!F5 -> 88 | G42: ='Záznamy hry'!G5 -> 53 | H42: ='Záznamy hry'!H5 -> 3 | I42: ='Záznamy hry'!I5 -> 88 | J42: ='Záznamy hry'!J5 -> 52 | K42: ='Záznamy hry'!K5 -> 0 | L42: ='Záznamy hry'!L5 -> 86 | M42: ='Záznamy hry'!M5 -> 32 | N42: ='Záznamy hry'!N5 -> 3 | O42: =C42+F42+I42+L42 -> 347 | P42: =D42+G42+J42+M42 -> 178 | Q42: =E42+H42+K42+N42 -> 7 | R42: =O42+P42 -> 525
A43: 41. | B43: ='Záznamy hry'!B53 -> Roubek Oldřich | C43: ='Záznamy hry'!C53 -> 81 | D43: ='Záznamy hry'!D53 -> 44 | E43: ='Záznamy hry'!E53 -> 2 | F43: ='Záznamy hry'!F53 -> 93 | G43: ='Záznamy hry'!G53 -> 54 | H43: ='Záznamy hry'!H53 -> 1 | I43: ='Záznamy hry'!I53 -> 84 | J43: ='Záznamy hry'!J53 -> 44 | K43: ='Záznamy hry'!K53 -> 0 | L43: ='Záznamy hry'!L53 -> 93 | M43: ='Záznamy hry'!M53 -> 32 | N43: ='Záznamy hry'!N53 -> 2 | O43: =C43+F43+I43+L43 -> 351 | P43: =D43+G43+J43+M43 -> 174 | Q43: =E43+H43+K43+N43 -> 5 | R43: =O43+P43 -> 525
A44: 42. | B44: ='Záznamy hry'!B62 -> Malovaný Jiří | C44: ='Záznamy hry'!C62 -> 93 | D44: ='Záznamy hry'!D62 -> 34 | E44: ='Záznamy hry'!E62 -> 1 | F44: ='Záznamy hry'!F62 -> 85 | G44: ='Záznamy hry'!G62 -> 57 | H44: ='Záznamy hry'!H62 -> 1 | I44: ='Záznamy hry'!I62 -> 85 | J44: ='Záznamy hry'!J62 -> 43 | K44: ='Záznamy hry'!K62 -> 2 | L44: ='Záznamy hry'!L62 -> 94 | M44: ='Záznamy hry'!M62 -> 34 | N44: ='Záznamy hry'!N62 -> 4 | O44: =C44+F44+I44+L44 -> 357 | P44: =D44+G44+J44+M44 -> 168 | Q44: =E44+H44+K44+N44 -> 8 | R44: =O44+P44 -> 525
A45: 43. | B45: ='Záznamy hry'!B50 -> Kopic Jindra | C45: ='Záznamy hry'!C50 -> 92 | D45: ='Záznamy hry'!D50 -> 36 | E45: ='Záznamy hry'!E50 -> 3 | F45: ='Záznamy hry'!F50 -> 82 | G45: ='Záznamy hry'!G50 -> 40 | H45: ='Záznamy hry'!H50 -> 1 | I45: ='Záznamy hry'!I50 -> 91 | J45: ='Záznamy hry'!J50 -> 51 | K45: ='Záznamy hry'!K50 -> 0 | L45: ='Záznamy hry'!L50 -> 97 | M45: ='Záznamy hry'!M50 -> 36 | N45: ='Záznamy hry'!N50 -> 2 | O45: =C45+F45+I45+L45 -> 362 | P45: =D45+G45+J45+M45 -> 163 | Q45: =E45+H45+K45+N45 -> 6 | R45: =O45+P45 -> 525
A46: 44. | B46: ='Záznamy hry'!B61 -> Siebenbrunner Čestm. | C46: ='Záznamy hry'!C61 -> 80 | D46: ='Záznamy hry'!D61 -> 49 | E46: ='Záznamy hry'!E61 -> 0 | F46: ='Záznamy hry'!F61 -> 98 | G46: ='Záznamy hry'!G61 -> 27 | H46: ='Záznamy hry'!H61 -> 2 | I46: ='Záznamy hry'!I61 -> 89 | J46: ='Záznamy hry'!J61 -> 51 | K46: ='Záznamy hry'!K61 -> 2 | L46: ='Záznamy hry'!L61 -> 97 | M46: ='Záznamy hry'!M61 -> 34 | N46: ='Záznamy hry'!N61 -> 3 | O46: =C46+F46+I46+L46 -> 364 | P46: =D46+G46+J46+M46 -> 161 | Q46: =E46+H46+K46+N46 -> 7 | R46: =O46+P46 -> 525
A47: 45. | B47: ='Záznamy hry'!B21 -> Svatošová Iva | C47: ='Záznamy hry'!C21 -> 107 | D47: ='Záznamy hry'!D21 -> 44 | E47: ='Záznamy hry'!E21 -> 1 | F47: ='Záznamy hry'!F21 -> 95 | G47: ='Záznamy hry'!G21 -> 34 | H47: ='Záznamy hry'!H21 -> 2 | I47: ='Záznamy hry'!I21 -> 87 | J47: ='Záznamy hry'!J21 -> 45 | K47: ='Záznamy hry'!K21 -> 1 | L47: ='Záznamy hry'!L21 -> 78 | M47: ='Záznamy hry'!M21 -> 34 | N47: ='Záznamy hry'!N21 -> 2 | O47: =C47+F47+I47+L47 -> 367 | P47: =D47+G47+J47+M47 -> 157 | Q47: =E47+H47+K47+N47 -> 6 | R47: =O47+P47 -> 524
A48: 46. | B48: ='Záznamy hry'!B75 -> Burdová Vendulka | C48: ='Záznamy hry'!C75 -> 86 | D48: ='Záznamy hry'!D75 -> 41 | E48: ='Záznamy hry'!E75 -> 3 | F48: ='Záznamy hry'!F75 -> 91 | G48: ='Záznamy hry'!G75 -> 53 | H48: ='Záznamy hry'!H75 -> 1 | I48: ='Záznamy hry'!I75 -> 80 | J48: ='Záznamy hry'!J75 -> 44 | K48: ='Záznamy hry'!K75 -> 3 | L48: ='Záznamy hry'!L75 -> 94 | M48: ='Záznamy hry'!M75 -> 33 | N48: ='Záznamy hry'!N75 -> 1 | O48: =C48+F48+I48+L48 -> 351 | P48: =D48+G48+J48+M48 -> 171 | Q48: =E48+H48+K48+N48 -> 8 | R48: =O48+P48 -> 522
A49: 47. | B49: ='Záznamy hry'!B45 -> Klimek Petr | C49: ='Záznamy hry'!C45 -> 97 | D49: ='Záznamy hry'!D45 -> 33 | E49: ='Záznamy hry'!E45 -> 3 | F49: ='Záznamy hry'!F45 -> 90 | G49: ='Záznamy hry'!G45 -> 43 | H49: ='Záznamy hry'!H45 -> 2 | I49: ='Záznamy hry'!I45 -> 89 | J49: ='Záznamy hry'!J45 -> 36 | K49: ='Záznamy hry'!K45 -> 1 | L49: ='Záznamy hry'!L45 -> 87 | M49: ='Záznamy hry'!M45 -> 43 | N49: ='Záznamy hry'!N45 -> 1 | O49: =C49+F49+I49+L49 -> 363 | P49: =D49+G49+J49+M49 -> 155 | Q49: =E49+H49+K49+N49 -> 7 | R49: =O49+P49 -> 518
A50: 48. | B50: ='Záznamy hry'!B68 -> Kroupová Daniela | C50: ='Záznamy hry'!C68 -> 85 | D50: ='Záznamy hry'!D68 -> 36 | E50: ='Záznamy hry'!E68 -> 3 | F50: ='Záznamy hry'!F68 -> 101 | G50: ='Záznamy hry'!G68 -> 44 | H50: ='Záznamy hry'!H68 -> 3 | I50: ='Záznamy hry'!I68 -> 91 | J50: ='Záznamy hry'!J68 -> 40 | K50: ='Záznamy hry'!K68 -> 2 | L50: ='Záznamy hry'!L68 -> 84 | M50: ='Záznamy hry'!M68 -> 35 | N50: ='Záznamy hry'!N68 -> 4 | O50: =C50+F50+I50+L50 -> 361 | P50: =D50+G50+J50+M50 -> 155 | Q50: =E50+H50+K50+N50 -> 12 | R50: =O50+P50 -> 516
A51: 49. | B51: ='Záznamy hry'!B40 -> Makovcová Alena | C51: ='Záznamy hry'!C40 -> 92 | D51: ='Záznamy hry'!D40 -> 41 | E51: ='Záznamy hry'!E40 -> 3 | F51: ='Záznamy hry'!F40 -> 83 | G51: ='Záznamy hry'!G40 -> 52 | H51: ='Záznamy hry'!H40 -> 2 | I51: ='Záznamy hry'!I40 -> 92 | J51: ='Záznamy hry'!J40 -> 35 | K51: ='Záznamy hry'!K40 -> 4 | L51: ='Záznamy hry'!L40 -> 89 | M51: ='Záznamy hry'!M40 -> 31 | N51: ='Záznamy hry'!N40 -> 6 | O51: =C51+F51+I51+L51 -> 356 | P51: =D51+G51+J51+M51 -> 159 | Q51: =E51+H51+K51+N51 -> 15 | R51: =O51+P51 -> 515
A52: 50. | B52: ='Záznamy hry'!B48 -> Chalaš Jaroslav | C52: ='Záznamy hry'!C48 -> 85 | D52: ='Záznamy hry'!D48 -> 44 | E52: ='Záznamy hry'!E48 -> 4 | F52: ='Záznamy hry'!F48 -> 99 | G52: ='Záznamy hry'!G48 -> 35 | H52: ='Záznamy hry'!H48 -> 2 | I52: ='Záznamy hry'!I48 -> 81 | J52: ='Záznamy hry'!J48 -> 49 | K52: ='Záznamy hry'!K48 -> 1 | L52: ='Záznamy hry'!L48 -> 84 | M52: ='Záznamy hry'!M48 -> 36 | N52: ='Záznamy hry'!N48 -> 4 | O52: =C52+F52+I52+L52 -> 349 | P52: =D52+G52+J52+M52 -> 164 | Q52: =E52+H52+K52+N52 -> 11 | R52: =O52+P52 -> 513
A53: 51. | B53: ='Záznamy hry'!B33 -> Vokurka Jiří | C53: ='Záznamy hry'!C33 -> 96 | D53: ='Záznamy hry'!D33 -> 43 | E53: ='Záznamy hry'!E33 -> 1 | F53: ='Záznamy hry'!F33 -> 94 | G53: ='Záznamy hry'!G33 -> 35 | H53: ='Záznamy hry'!H33 -> 3 | I53: ='Záznamy hry'!I33 -> 83 | J53: ='Záznamy hry'!J33 -> 36 | K53: ='Záznamy hry'!K33 -> 3 | L53: ='Záznamy hry'!L33 -> 89 | M53: ='Záznamy hry'!M33 -> 36 | N53: ='Záznamy hry'!N33 -> 0 | O53: =C53+F53+I53+L53 -> 362 | P53: =D53+G53+J53+M53 -> 150 | Q53: =E53+H53+K53+N53 -> 7 | R53: =O53+P53 -> 512
A54: 52. | B54: ='Záznamy hry'!B34 -> Mikeš Josef | C54: ='Záznamy hry'!C34 -> 84 | D54: ='Záznamy hry'!D34 -> 31 | E54: ='Záznamy hry'!E34 -> 3 | F54: ='Záznamy hry'!F34 -> 98 | G54: ='Záznamy hry'!G34 -> 43 | H54: ='Záznamy hry'!H34 -> 0 | I54: ='Záznamy hry'!I34 -> 99 | J54: ='Záznamy hry'!J34 -> 36 | K54: ='Záznamy hry'!K34 -> 1 | L54: ='Záznamy hry'!L34 -> 88 | M54: ='Záznamy hry'!M34 -> 33 | N54: ='Záznamy hry'!N34 -> 3 | O54: =C54+F54+I54+L54 -> 369 | P54: =D54+G54+J54+M54 -> 143 | Q54: =E54+H54+K54+N54 -> 7 | R54: =O54+P54 -> 512
A55: 53. | B55: ='Záznamy hry'!B78 -> Kovandová Alena | C55: ='Záznamy hry'!C78 -> 84 | D55: ='Záznamy hry'!D78 -> 34 | E55: ='Záznamy hry'!E78 -> 2 | F55: ='Záznamy hry'!F78 -> 95 | G55: ='Záznamy hry'!G78 -> 36 | H55: ='Záznamy hry'!H78 -> 0 | I55: ='Záznamy hry'!I78 -> 84 | J55: ='Záznamy hry'!J78 -> 54 | K55: ='Záznamy hry'!K78 -> 2 | L55: ='Záznamy hry'!L78 -> 92 | M55: ='Záznamy hry'!M78 -> 32 | N55: ='Záznamy hry'!N78 -> 6 | O55: =C55+F55+I55+L55 -> 355 | P55: =D55+G55+J55+M55 -> 156 | Q55: =E55+H55+K55+N55 -> 10 | R55: =O55+P55 -> 511
A56: 54. | B56: ='Záznamy hry'!B26 -> Dvořáková Kamila | C56: ='Záznamy hry'!C26 -> 86 | D56: ='Záznamy hry'!D26 -> 35 | E56: ='Záznamy hry'!E26 -> 1 | F56: ='Záznamy hry'!F26 -> 86 | G56: ='Záznamy hry'!G26 -> 40 | H56: ='Záznamy hry'!H26 -> 0 | I56: ='Záznamy hry'!I26 -> 88 | J56: ='Záznamy hry'!J26 -> 43 | K56: ='Záznamy hry'!K26 -> 2 | L56: ='Záznamy hry'!L26 -> 91 | M56: ='Záznamy hry'!M26 -> 41 | N56: ='Záznamy hry'!N26 -> 1 | O56: =C56+F56+I56+L56 -> 351 | P56: =D56+G56+J56+M56 -> 159 | Q56: =E56+H56+K56+N56 -> 4 | R56: =O56+P56 -> 510
A57: 55. | B57: ='Záznamy hry'!B12 -> Novotný Jiří | C57: ='Záznamy hry'!C12 -> 88 | D57: ='Záznamy hry'!D12 -> 40 | E57: ='Záznamy hry'!E12 -> 3 | F57: ='Záznamy hry'!F12 -> 80 | G57: ='Záznamy hry'!G12 -> 44 | H57: ='Záznamy hry'!H12 -> 3 | I57: ='Záznamy hry'!I12 -> 89 | J57: ='Záznamy hry'!J12 -> 45 | K57: ='Záznamy hry'!K12 -> 2 | L57: ='Záznamy hry'!L12 -> 87 | M57: ='Záznamy hry'!M12 -> 36 | N57: ='Záznamy hry'!N12 -> 3 | O57: =C57+F57+I57+L57 -> 344 | P57: =D57+G57+J57+M57 -> 165 | Q57: =E57+H57+K57+N57 -> 11 | R57: =O57+P57 -> 509
A58: 56. | B58: ='Záznamy hry'!B32 -> Kníže Stanislav | C58: ='Záznamy hry'!C32 -> 90 | D58: ='Záznamy hry'!D32 -> 27 | E58: ='Záznamy hry'!E32 -> 0 | F58: ='Záznamy hry'!F32 -> 84 | G58: ='Záznamy hry'!G32 -> 42 | H58: ='Záznamy hry'!H32 -> 4 | I58: ='Záznamy hry'!I32 -> 85 | J58: ='Záznamy hry'!J32 -> 51 | K58: ='Záznamy hry'!K32 -> 0 | L58: ='Záznamy hry'!L32 -> 87 | M58: ='Záznamy hry'!M32 -> 43 | N58: ='Záznamy hry'!N32 -> 2 | O58: =C58+F58+I58+L58 -> 346 | P58: =D58+G58+J58+M58 -> 163 | Q58: =E58+H58+K58+N58 -> 6 | R58: =O58+P58 -> 509
A59: 57. | B59: ='Záznamy hry'!B22 -> Kučerová Gabriela | C59: ='Záznamy hry'!C22 -> 94 | D59: ='Záznamy hry'!D22 -> 45 | E59: ='Záznamy hry'!E22 -> 1 | F59: ='Záznamy hry'!F22 -> 89 | G59: ='Záznamy hry'!G22 -> 25 | H59: ='Záznamy hry'!H22 -> 3 | I59: ='Záznamy hry'!I22 -> 89 | J59: ='Záznamy hry'!J22 -> 44 | K59: ='Záznamy hry'!K22 -> 2 | L59: ='Záznamy hry'!L22 -> 81 | M59: ='Záznamy hry'!M22 -> 33 | N59: ='Záznamy hry'!N22 -> 3 | O59: =C59+F59+I59+L59 -> 353 | P59: =D59+G59+J59+M59 -> 147 | Q59: =E59+H59+K59+N59 -> 9 | R59: =O59+P59 -> 500
A60: 58. | B60: ='Záznamy hry'!B28 -> Jelínek Dušan | C60: ='Záznamy hry'!C28 -> 87 | D60: ='Záznamy hry'!D28 -> 42 | E60: ='Záznamy hry'!E28 -> 1 | F60: ='Záznamy hry'!F28 -> 69 | G60: ='Záznamy hry'!G28 -> 35 | H60: ='Záznamy hry'!H28 -> 2 | I60: ='Záznamy hry'!I28 -> 78 | J60: ='Záznamy hry'!J28 -> 45 | K60: ='Záznamy hry'!K28 -> 4 | L60: ='Záznamy hry'!L28 -> 89 | M60: ='Záznamy hry'!M28 -> 54 | N60: ='Záznamy hry'!N28 -> 1 | O60: =C60+F60+I60+L60 -> 323 | P60: =D60+G60+J60+M60 -> 176 | Q60: =E60+H60+K60+N60 -> 8 | R60: =O60+P60 -> 499
A61: 59. | B61: ='Záznamy hry'!B76 -> Kovandová Tereza | C61: ='Záznamy hry'!C76 -> 88 | D61: ='Záznamy hry'!D76 -> 35 | E61: ='Záznamy hry'!E76 -> 4 | F61: ='Záznamy hry'!F76 -> 86 | G61: ='Záznamy hry'!G76 -> 33 | H61: ='Záznamy hry'!H76 -> 4 | I61: ='Záznamy hry'!I76 -> 89 | J61: ='Záznamy hry'!J76 -> 50 | K61: ='Záznamy hry'!K76 -> 2 | L61: ='Záznamy hry'!L76 -> 82 | M61: ='Záznamy hry'!M76 -> 36 | N61: ='Záznamy hry'!N76 -> 1 | O61: =C61+F61+I61+L61 -> 345 | P61: =D61+G61+J61+M61 -> 154 | Q61: =E61+H61+K61+N61 -> 11 | R61: =O61+P61 -> 499
A62: 60. | B62: ='Záznamy hry'!B47 -> Dudová Alena | C62: ='Záznamy hry'!C47 -> 89 | D62: ='Záznamy hry'!D47 -> 26 | E62: ='Záznamy hry'!E47 -> 8 | F62: ='Záznamy hry'!F47 -> 98 | G62: ='Záznamy hry'!G47 -> 33 | H62: ='Záznamy hry'!H47 -> 2 | I62: ='Záznamy hry'!I47 -> 99 | J62: ='Záznamy hry'!J47 -> 43 | K62: ='Záznamy hry'!K47 -> 2 | L62: ='Záznamy hry'!L47 -> 90 | M62: ='Záznamy hry'!M47 -> 18 | N62: ='Záznamy hry'!N47 -> 6 | O62: =C62+F62+I62+L62 -> 376 | P62: =D62+G62+J62+M62 -> 120 | Q62: =E62+H62+K62+N62 -> 18 | R62: =O62+P62 -> 496
A63: 61. | B63: ='Záznamy hry'!B15 -> Šostý Miroslav | C63: ='Záznamy hry'!C15 -> 84 | D63: ='Záznamy hry'!D15 -> 18 | E63: ='Záznamy hry'!E15 -> 6 | F63: ='Záznamy hry'!F15 -> 92 | G63: ='Záznamy hry'!G15 -> 44 | H63: ='Záznamy hry'!H15 -> 2 | I63: ='Záznamy hry'!I15 -> 90 | J63: ='Záznamy hry'!J15 -> 43 | K63: ='Záznamy hry'!K15 -> 1 | L63: ='Záznamy hry'!L15 -> 81 | M63: ='Záznamy hry'!M15 -> 43 | N63: ='Záznamy hry'!N15 -> 2 | O63: =C63+F63+I63+L63 -> 347 | P63: =D63+G63+J63+M63 -> 148 | Q63: =E63+H63+K63+N63 -> 11 | R63: =O63+P63 -> 495
A64: 62. | B64: ='Záznamy hry'!B41 -> Bartoň David | C64: ='Záznamy hry'!C41 -> 81 | D64: ='Záznamy hry'!D41 -> 61 | E64: ='Záznamy hry'!E41 -> 0 | F64: ='Záznamy hry'!F41 -> 89 | G64: ='Záznamy hry'!G41 -> 36 | H64: ='Záznamy hry'!H41 -> 3 | I64: ='Záznamy hry'!I41 -> 80 | J64: ='Záznamy hry'!J41 -> 43 | K64: ='Záznamy hry'!K41 -> 3 | L64: ='Záznamy hry'!L41 -> 81 | M64: ='Záznamy hry'!M41 -> 23 | N64: ='Záznamy hry'!N41 -> 6 | O64: =C64+F64+I64+L64 -> 331 | P64: =D64+G64+J64+M64 -> 163 | Q64: =E64+H64+K64+N64 -> 12 | R64: =O64+P64 -> 494
A65: 63. | B65: ='Záznamy hry'!B73 -> Vávra František | C65: ='Záznamy hry'!C73 -> 81 | D65: ='Záznamy hry'!D73 -> 27 | E65: ='Záznamy hry'!E73 -> 4 | F65: ='Záznamy hry'!F73 -> 86 | G65: ='Záznamy hry'!G73 -> 34 | H65: ='Záznamy hry'!H73 -> 3 | I65: ='Záznamy hry'!I73 -> 92 | J65: ='Záznamy hry'!J73 -> 52 | K65: ='Záznamy hry'!K73 -> 1 | L65: ='Záznamy hry'!L73 -> 85 | M65: ='Záznamy hry'!M73 -> 35 | N65: ='Záznamy hry'!N73 -> 3 | O65: =C65+F65+I65+L65 -> 344 | P65: =D65+G65+J65+M65 -> 148 | Q65: =E65+H65+K65+N65 -> 11 | R65: =O65+P65 -> 492
A66: 64. | B66: ='Záznamy hry'!B11 -> Zahrádka Ladislav | C66: ='Záznamy hry'!C11 -> 87 | D66: ='Záznamy hry'!D11 -> 36 | E66: ='Záznamy hry'!E11 -> 2 | F66: ='Záznamy hry'!F11 -> 75 | G66: ='Záznamy hry'!G11 -> 34 | H66: ='Záznamy hry'!H11 -> 4 | I66: ='Záznamy hry'!I11 -> 90 | J66: ='Záznamy hry'!J11 -> 26 | K66: ='Záznamy hry'!K11 -> 4 | L66: ='Záznamy hry'!L11 -> 93 | M66: ='Záznamy hry'!M11 -> 50 | N66: ='Záznamy hry'!N11 -> 0 | O66: =C66+F66+I66+L66 -> 345 | P66: =D66+G66+J66+M66 -> 146 | Q66: =E66+H66+K66+N66 -> 10 | R66: =O66+P66 -> 491
A67: 65. | B67: ='Záznamy hry'!B72 -> Dvořák Jan | C67: ='Záznamy hry'!C72 -> 96 | D67: ='Záznamy hry'!D72 -> 43 | E67: ='Záznamy hry'!E72 -> 2 | F67: ='Záznamy hry'!F72 -> 86 | G67: ='Záznamy hry'!G72 -> 39 | H67: ='Záznamy hry'!H72 -> 1 | I67: ='Záznamy hry'!I72 -> 81 | J67: ='Záznamy hry'!J72 -> 27 | K67: ='Záznamy hry'!K72 -> 3 | L67: ='Záznamy hry'!L72 -> 82 | M67: ='Záznamy hry'!M72 -> 35 | N67: ='Záznamy hry'!N72 -> 3 | O67: =C67+F67+I67+L67 -> 345 | P67: =D67+G67+J67+M67 -> 144 | Q67: =E67+H67+K67+N67 -> 9 | R67: =O67+P67 -> 489
A68: 66. | B68: ='Záznamy hry'!B20 -> Chobotský Jan | C68: ='Záznamy hry'!C20 -> 94 | D68: ='Záznamy hry'!D20 -> 35 | E68: ='Záznamy hry'!E20 -> 1 | F68: ='Záznamy hry'!F20 -> 84 | G68: ='Záznamy hry'!G20 -> 27 | H68: ='Záznamy hry'!H20 -> 4 | I68: ='Záznamy hry'!I20 -> 88 | J68: ='Záznamy hry'!J20 -> 27 | K68: ='Záznamy hry'!K20 -> 3 | L68: ='Záznamy hry'!L20 -> 90 | M68: ='Záznamy hry'!M20 -> 35 | N68: ='Záznamy hry'!N20 -> 4 | O68: =C68+F68+I68+L68 -> 356 | P68: =D68+G68+J68+M68 -> 124 | Q68: =E68+H68+K68+N68 -> 12 | R68: =O68+P68 -> 480
A69: 67. | B69: ='Záznamy hry'!B70 -> Kroupa Bedřich | C69: ='Záznamy hry'!C70 -> 74 | D69: ='Záznamy hry'!D70 -> 32 | E69: ='Záznamy hry'!E70 -> 6 | F69: ='Záznamy hry'!F70 -> 79 | G69: ='Záznamy hry'!G70 -> 50 | H69: ='Záznamy hry'!H70 -> 2 | I69: ='Záznamy hry'!I70 -> 86 | J69: ='Záznamy hry'!J70 -> 34 | K69: ='Záznamy hry'!K70 -> 3 | L69: ='Záznamy hry'!L70 -> 85 | M69: ='Záznamy hry'!M70 -> 36 | N69: ='Záznamy hry'!N70 -> 2 | O69: =C69+F69+I69+L69 -> 324 | P69: =D69+G69+J69+M69 -> 152 | Q69: =E69+H69+K69+N69 -> 13 | R69: =O69+P69 -> 476
A70: 68. | B70: ='Záznamy hry'!B64 -> Kolařík Petr | C70: ='Záznamy hry'!C64 -> 86 | D70: ='Záznamy hry'!D64 -> 43 | E70: ='Záznamy hry'!E64 -> 0 | F70: ='Záznamy hry'!F64 -> 83 | G70: ='Záznamy hry'!G64 -> 35 | H70: ='Záznamy hry'!H64 -> 3 | I70: ='Záznamy hry'!I64 -> 80 | J70: ='Záznamy hry'!J64 -> 34 | K70: ='Záznamy hry'!K64 -> 3 | L70: ='Záznamy hry'!L64 -> 79 | M70: ='Záznamy hry'!M64 -> 33 | N70: ='Záznamy hry'!N64 -> 1 | O70: =C70+F70+I70+L70 -> 328 | P70: =D70+G70+J70+M70 -> 145 | Q70: =E70+H70+K70+N70 -> 7 | R70: =O70+P70 -> 473
A71: 69. | B71: ='Záznamy hry'!B69 -> Votruba Jan | C71: ='Záznamy hry'!C69 -> 81 | D71: ='Záznamy hry'!D69 -> 34 | E71: ='Záznamy hry'!E69 -> 3 | F71: ='Záznamy hry'!F69 -> 81 | G71: ='Záznamy hry'!G69 -> 24 | H71: ='Záznamy hry'!H69 -> 7 | I71: ='Záznamy hry'!I69 -> 81 | J71: ='Záznamy hry'!J69 -> 36 | K71: ='Záznamy hry'!K69 -> 2 | L71: ='Záznamy hry'!L69 -> 92 | M71: ='Záznamy hry'!M69 -> 43 | N71: ='Záznamy hry'!N69 -> 1 | O71: =C71+F71+I71+L71 -> 335 | P71: =D71+G71+J71+M71 -> 137 | Q71: =E71+H71+K71+N71 -> 13 | R71: =O71+P71 -> 472
A72: 70. | B72: ='Záznamy hry'!B67 -> Kříha Vlastimil | C72: ='Záznamy hry'!C67 -> 95 | D72: ='Záznamy hry'!D67 -> 14 | E72: ='Záznamy hry'!E67 -> 8 | F72: ='Záznamy hry'!F67 -> 88 | G72: ='Záznamy hry'!G67 -> 33 | H72: ='Záznamy hry'!H67 -> 4 | I72: ='Záznamy hry'!I67 -> 90 | J72: ='Záznamy hry'!J67 -> 24 | K72: ='Záznamy hry'!K67 -> 5 | L72: ='Záznamy hry'!L67 -> 90 | M72: ='Záznamy hry'!M67 -> 35 | N72: ='Záznamy hry'!N67 -> 3 | O72: =C72+F72+I72+L72 -> 363 | P72: =D72+G72+J72+M72 -> 106 | Q72: =E72+H72+K72+N72 -> 20 | R72: =O72+P72 -> 469
A73: 71. | B73: ='Záznamy hry'!B37 -> Hanzálková Libuše | C73: ='Záznamy hry'!C37 -> 88 | D73: ='Záznamy hry'!D37 -> 35 | E73: ='Záznamy hry'!E37 -> 5 | F73: ='Záznamy hry'!F37 -> 73 | G73: ='Záznamy hry'!G37 -> 36 | H73: ='Záznamy hry'!H37 -> 2 | I73: ='Záznamy hry'!I37 -> 75 | J73: ='Záznamy hry'!J37 -> 33 | K73: ='Záznamy hry'!K37 -> 6 | L73: ='Záznamy hry'!L37 -> 87 | M73: ='Záznamy hry'!M37 -> 36 | N73: ='Záznamy hry'!N37 -> 5 | O73: =C73+F73+I73+L73 -> 323 | P73: =D73+G73+J73+M73 -> 140 | Q73: =E73+H73+K73+N73 -> 18 | R73: =O73+P73 -> 463
A74: 72. | B74: ='Záznamy hry'!B82 -> Mertl Jiří | C74: ='Záznamy hry'!C82 -> 94 | D74: ='Záznamy hry'!D82 -> 17 | E74: ='Záznamy hry'!E82 -> 8 | F74: ='Záznamy hry'!F82 -> 91 | G74: ='Záznamy hry'!G82 -> 24 | H74: ='Záznamy hry'!H82 -> 5 | I74: ='Záznamy hry'!I82 -> 65 | J74: ='Záznamy hry'!J82 -> 36 | K74: ='Záznamy hry'!K82 -> 2 | L74: ='Záznamy hry'!L82 -> 89 | M74: ='Záznamy hry'!M82 -> 42 | N74: ='Záznamy hry'!N82 -> 4 | O74: =C74+F74+I74+L74 -> 339 | P74: =D74+G74+J74+M74 -> 119 | Q74: =E74+H74+K74+N74 -> 19 | R74: =O74+P74 -> 458
A75: 73. | B75: ='Záznamy hry'!B14 -> Bernátek Bedřich | C75: ='Záznamy hry'!C14 -> 94 | D75: ='Záznamy hry'!D14 -> 26 | E75: ='Záznamy hry'!E14 -> 5 | F75: ='Záznamy hry'!F14 -> 77 | G75: ='Záznamy hry'!G14 -> 43 | H75: ='Záznamy hry'!H14 -> 1 | I75: ='Záznamy hry'!I14 -> 84 | J75: ='Záznamy hry'!J14 -> 34 | K75: ='Záznamy hry'!K14 -> 7 | L75: ='Záznamy hry'!L14 -> 63 | M75: ='Záznamy hry'!M14 -> 36 | N75: ='Záznamy hry'!N14 -> 1 | O75: =C75+F75+I75+L75 -> 318 | P75: =D75+G75+J75+M75 -> 139 | Q75: =E75+H75+K75+N75 -> 14 | R75: =O75+P75 -> 457
A76: 74. | B76: ='Záznamy hry'!B74 -> Svoboda Josef | C76: ='Záznamy hry'!C74 -> 71 | D76: ='Záznamy hry'!D74 -> 35 | E76: ='Záznamy hry'!E74 -> 1 | F76: ='Záznamy hry'!F74 -> 72 | G76: ='Záznamy hry'!G74 -> 25 | H76: ='Záznamy hry'!H74 -> 7 | I76: ='Záznamy hry'!I74 -> 82 | J76: ='Záznamy hry'!J74 -> 42 | K76: ='Záznamy hry'!K74 -> 1 | L76: ='Záznamy hry'!L74 -> 84 | M76: ='Záznamy hry'!M74 -> 34 | N76: ='Záznamy hry'!N74 -> 4 | O76: =C76+F76+I76+L76 -> 309 | P76: =D76+G76+J76+M76 -> 136 | Q76: =E76+H76+K76+N76 -> 13 | R76: =O76+P76 -> 445
A77: 75. | B77: ='Záznamy hry'!B36 -> Roubková Blanka | C77: ='Záznamy hry'!C36 -> 88 | D77: ='Záznamy hry'!D36 -> 17 | E77: ='Záznamy hry'!E36 -> 8 | F77: ='Záznamy hry'!F36 -> 75 | G77: ='Záznamy hry'!G36 -> 51 | H77: ='Záznamy hry'!H36 -> 1 | I77: ='Záznamy hry'!I36 -> 70 | J77: ='Záznamy hry'!J36 -> 42 | K77: ='Záznamy hry'!K36 -> 3 | L77: ='Záznamy hry'!L36 -> 81 | M77: ='Záznamy hry'!M36 -> 18 | N77: ='Záznamy hry'!N36 -> 7 | O77: =C77+F77+I77+L77 -> 314 | P77: =D77+G77+J77+M77 -> 128 | Q77: =E77+H77+K77+N77 -> 19 | R77: =O77+P77 -> 442
A78: 76. | B78: ='Záznamy hry'!B16 -> Hrbek Ivan | C78: ='Záznamy hry'!C16 -> 75 | D78: ='Záznamy hry'!D16 -> 25 | E78: ='Záznamy hry'!E16 -> 6 | F78: ='Záznamy hry'!F16 -> 96 | G78: ='Záznamy hry'!G16 -> 31 | H78: ='Záznamy hry'!H16 -> 2 | I78: ='Záznamy hry'!I16 -> 79 | J78: ='Záznamy hry'!J16 -> 26 | K78: ='Záznamy hry'!K16 -> 8 | L78: ='Záznamy hry'!L16 -> 76 | M78: ='Záznamy hry'!M16 -> 33 | N78: ='Záznamy hry'!N16 -> 3 | O78: =C78+F78+I78+L78 -> 326 | P78: =D78+G78+J78+M78 -> 115 | Q78: =E78+H78+K78+N78 -> 19 | R78: =O78+P78 -> 441
A79: 77. | B79: ='Záznamy hry'!B13 -> Pozner Jan | C79: ='Záznamy hry'!C13 -> 87 | D79: ='Záznamy hry'!D13 -> 33 | E79: ='Záznamy hry'!E13 -> 3 | F79: ='Záznamy hry'!F13 -> 78 | G79: ='Záznamy hry'!G13 -> 26 | H79: ='Záznamy hry'!H13 -> 5 | I79: ='Záznamy hry'!I13 -> 88 | J79: ='Záznamy hry'!J13 -> 27 | K79: ='Záznamy hry'!K13 -> 6 | L79: ='Záznamy hry'!L13 -> 71 | M79: ='Záznamy hry'!M13 -> 23 | N79: ='Záznamy hry'!N13 -> 5 | O79: =C79+F79+I79+L79 -> 324 | P79: =D79+G79+J79+M79 -> 109 | Q79: =E79+H79+K79+N79 -> 19 | R79: =O79+P79 -> 433
A80: 78. | B80: ='Záznamy hry'!B18 -> Zdráhalová Martina | C80: ='Záznamy hry'!C18 -> 86 | D80: ='Záznamy hry'!D18 -> 24 | E80: ='Záznamy hry'!E18 -> 5 | F80: ='Záznamy hry'!F18 -> 72 | G80: ='Záznamy hry'!G18 -> 18 | H80: ='Záznamy hry'!H18 -> 6 | I80: ='Záznamy hry'!I18 -> 67 | J80: ='Záznamy hry'!J18 -> 26 | K80: ='Záznamy hry'!K18 -> 5 | L80: ='Záznamy hry'!L18 -> 80 | M80: ='Záznamy hry'!M18 -> 42 | N80: ='Záznamy hry'!N18 -> 0 | O80: =C80+F80+I80+L80 -> 305 | P80: =D80+G80+J80+M80 -> 110 | Q80: =E80+H80+K80+N80 -> 16 | R80: =O80+P80 -> 415
A81: 79. | B81: ='Záznamy hry'!B17 -> Březina Rudolf | C81: ='Záznamy hry'!C17 -> 67 | D81: ='Záznamy hry'!D17 -> 27 | E81: ='Záznamy hry'!E17 -> 6 | F81: ='Záznamy hry'!F17 -> 83 | G81: ='Záznamy hry'!G17 -> 33 | H81: ='Záznamy hry'!H17 -> 4 | I81: ='Záznamy hry'!I17 -> 76 | J81: ='Záznamy hry'!J17 -> 24 | K81: ='Záznamy hry'!K17 -> 3 | L81: ='Záznamy hry'!L17 -> 71 | M81: ='Záznamy hry'!M17 -> 33 | N81: ='Záznamy hry'!N17 -> 6 | O81: =C81+F81+I81+L81 -> 297 | P81: =D81+G81+J81+M81 -> 117 | Q81: =E81+H81+K81+N81 -> 19 | R81: =O81+P81 -> 414
A82: 80. | B82: ='Záznamy hry'!B38 -> Šedivcová Jitka | C82: ='Záznamy hry'!C38 -> 69 | D82: ='Záznamy hry'!D38 -> 34 | E82: ='Záznamy hry'!E38 -> 3 | F82: ='Záznamy hry'!F38 -> 71 | G82: ='Záznamy hry'!G38 -> 27 | H82: ='Záznamy hry'!H38 -> 4 | I82: ='Záznamy hry'!I38 -> 58 | J82: ='Záznamy hry'!J38 -> 25 | K82: ='Záznamy hry'!K38 -> 8 | L82: ='Záznamy hry'!L38 -> 79 | M82: ='Záznamy hry'!M38 -> 32 | N82: ='Záznamy hry'!N38 -> 4 | O82: =C82+F82+I82+L82 -> 277 | P82: =D82+G82+J82+M82 -> 118 | Q82: =E82+H82+K82+N82 -> 19 | R82: =O82+P82 -> 395

Sheet Pořadí družstev
A1: Pořadí | B1: Družstvo | C1: Hráč 1 | D1: Výkon 1 | E1: Hráč 2 | F1: Výkon 2 | G1: Hráč 3 | H1: Výkon 3 | I1: Hráč 4 | J1: Výkon 4 | K1: CELKEM DRUŽSTVO
A2: 1. | B2: ='Záznamy hry'!$A$7 -> Slovan Kamenice n/Lipou | C2: ='Záznamy hry'!$B$7 -> Ouhel Jiří . | D2: ='Záznamy hry'!$R$7 -> 574 | E2: ='Záznamy hry'!$B$8 -> Dúška Karel | F2: ='Záznamy hry'!$R$8 -> 539 | G2: ='Záznamy hry'!$B$9 -> Dúška David | H2: ='Záznamy hry'!$R$9 -> 592 | I2: ='Záznamy hry'!$B$10 -> Ouhel Jakub | J2: ='Záznamy hry'!$R$10 -> 559 | K2: ='Záznamy hry'!$S$7 -> 2264
A3: 2. | B3: ='Záznamy hry'!$A$55 -> KK Loko Tábor A | C3: ='Záznamy hry'!$B$55 -> Takáč Ladislav | D3: ='Záznamy hry'!$R$55 -> 581 | E3: ='Záznamy hry'!$B$56 -> Chval Petr | F3: ='Záznamy hry'!$R$56 -> 545 | G3: ='Záznamy hry'!$B$57 -> Smažík Karel | H3: ='Záznamy hry'!$R$57 -> 576 | I3: ='Záznamy hry'!$B$58 -> Jelínek Bořivoj | J3: ='Záznamy hry'!$R$58 -> 560 | K3: ='Záznamy hry'!$S$55 -> 2262
A4: 3. | B4: ='Záznamy hry'!$A$51 -> KK Loko Tábor B | C4: ='Záznamy hry'!$B$51 -> Kášek David | D4: ='Záznamy hry'!$R$51 -> 572 | E4: ='Záznamy hry'!$B$52 -> Filakovský Martin | F4: ='Záznamy hry'!$R$52 -> 577 | G4: ='Záznamy hry'!$B$53 -> Roubek Oldřich | H4: ='Záznamy hry'!$R$53 -> 525 | I4: ='Záznamy hry'!$B$54 -> Bystřický Petr | J4: ='Záznamy hry'!$R$54 -> 558 | K4: ='Záznamy hry'!$S$51 -> 2232
A5: 4. | B5: ='Záznamy hry'!$A$23 -> České Velenice | C5: ='Záznamy hry'!$B$23 -> Dvořák Zdeněk | D5: ='Záznamy hry'!$R$23 -> 588 | E5: ='Záznamy hry'!$B$24 -> Dvořák Miroslav | F5: ='Záznamy hry'!$R$24 -> 558 | G5: ='Záznamy hry'!$B$25 -> Dvořák Zbyněk | H5: ='Záznamy hry'!$R$25 -> 555 | I5: ='Záznamy hry'!$B$26 -> Dvořáková Kamila | J5: ='Záznamy hry'!$R$26 -> 510 | K5: ='Záznamy hry'!$S$23 -> 2211
A6: 5. | B6: ='Záznamy hry'!$A$27 -> KK Hilton Sezimovo Ústí | C6: ='Záznamy hry'!$B$27 -> Vrbík Pavel | D6: ='Záznamy hry'!$R$27 -> 543 | E6: ='Záznamy hry'!$B$28 -> Jelínek Dušan | F6: ='Záznamy hry'!$R$28 -> 499 | G6: ='Záznamy hry'!$B$29 -> Mikuláštík Michal | H6: ='Záznamy hry'!$R$29 -> 531 | I6: ='Záznamy hry'!$B$30 -> Novák Jan | J6: ='Záznamy hry'!$R$30 -> 622 | K6: ='Záznamy hry'!$S$27 -> 2195
A7: 6. | B7: ='Záznamy hry'!$A$43 -> KK Loko Tábor C | C7: ='Záznamy hry'!$B$43 -> Kučera Vladimír | D7: ='Záznamy hry'!$R$43 -> 587 | E7: ='Záznamy hry'!$B$44 -> Zeman Zdeněk | F7: ='Záznamy hry'!$R$44 -> 534 | G7: ='Záznamy hry'!$B$45 -> Klimek Petr | H7: ='Záznamy hry'!$R$45 -> 518 | I7: ='Záznamy hry'!$B$46 -> Kořínek Pavel | J7: ='Záznamy hry'!$R$46 -> 533 | K7: ='Záznamy hry'!$S$43 -> 2172
A8: 7. | B8: ='Záznamy hry'!$A$3 -> Sokol Chotoviny A | C8: ='Záznamy hry'!$B$3 -> Hein Zbyněk | D8: ='Záznamy hry'!$R$3 -> 549 | E8: ='Záznamy hry'!$B$4 -> Fořter Jan | F8: ='Záznamy hry'!$R$4 -> 549 | G8: ='Záznamy hry'!$B$5 -> Hrstka Libor | H8: ='Záznamy hry'!$R$5 -> 525 | I8: ='Záznamy hry'!$B$6 -> Bartoň Jan | J8: ='Záznamy hry'!$R$6 -> 529 | K8: ='Záznamy hry'!$S$3 -> 2152
A9: 8. | B9: ='Záznamy hry'!$A$59 -> Borovany | C9: ='Záznamy hry'!$B$59 -> Soukup Martin | D9: ='Záznamy hry'!$R$59 -> 564 | E9: ='Záznamy hry'!$B$60 -> Šimková Jitka | F9: ='Záznamy hry'!$R$60 -> 526 | G9: ='Záznamy hry'!$B$61 -> Siebenbrunner Čestm. | H9: ='Záznamy hry'!$R$61 -> 525 | I9: ='Záznamy hry'!$B$62 -> Malovaný Jiří | J9: ='Záznamy hry'!$R$62 -> 525 | K9: ='Záznamy hry'!$S$59 -> 2140
A10: 9. | B10: ='Záznamy hry'!$A$39 -> Sokol Chotoviny B | C10: ='Záznamy hry'!$B$39 -> Křemen Petr | D10: ='Záznamy hry'!$R$39 -> 540 | E10: ='Záznamy hry'!$B$40 -> Makovcová Alena | F10: ='Záznamy hry'!$R$40 -> 515 | G10: ='Záznamy hry'!$B$41 -> Bartoň David | H10: ='Záznamy hry'!$R$41 -> 494 | I10: ='Záznamy hry'!$B$42 -> Makovec Pavel | J10: ='Záznamy hry'!$R$42 -> 559 | K10: ='Záznamy hry'!$S$39 -> 2108
A11: 10. | B11: ='Záznamy hry'!$A$79 -> Jiskra Nová Bystřice | C11: ='Záznamy hry'!$B$79 -> Chvátal Marek | D11: ='Záznamy hry'!$R$79 -> 550 | E11: ='Záznamy hry'!$B$80 -> Pýchová Barbora | F11: ='Záznamy hry'!$R$80 -> 547 | G11: ='Záznamy hry'!$B$81 -> Mertlová Petra | H11: ='Záznamy hry'!$R$81 -> 552 | I11: ='Záznamy hry'!$B$82 -> Mertl Jiří | J11: ='Záznamy hry'!$R$82 -> 458 | K11: ='Záznamy hry'!$S$79 -> 2107
A12: 11. | B12: ='Záznamy hry'!$A$63 -> Písek | C12: ='Záznamy hry'!$B$63 -> Korecká Jitka | D12: ='Záznamy hry'!$R$63 -> 540 | E12: ='Záznamy hry'!$B$64 -> Kolařík Petr | F12: ='Záznamy hry'!$R$64 -> 473 | G12: ='Záznamy hry'!$B$65 -> Koubek Karel | H12: ='Záznamy hry'!$R$65 -> 537 | I12: ='Záznamy hry'!$B$66 -> Nedomová Drahomíra | J12: ='Záznamy hry'!$R$66 -> 539 | K12: ='Záznamy hry'!$S$63 -> 2089
A13: 12. | B13: ='Záznamy hry'!$A$31 -> TJ Blatná | C13: ='Záznamy hry'!$B$31 -> Kobliha Vítek | D13: ='Záznamy hry'!$R$31 -> 544 | E13: ='Záznamy hry'!$B$32 -> Kníže Stanislav | F13: ='Záznamy hry'!$R$32 -> 509 | G13: ='Záznamy hry'!$B$33 -> Vokurka Jiří | H13: ='Záznamy hry'!$R$33 -> 512 | I13: ='Záznamy hry'!$B$34 -> Mikeš Josef | J13: ='Záznamy hry'!$R$34 -> 512 | K13: ='Záznamy hry'!$S$31 -> 2077
A14: 13. | B14: ='Záznamy hry'!$A$47 -> Spartak Soběslav | C14: ='Záznamy hry'!$B$47 -> Dudová Alena | D14: ='Záznamy hry'!$R$47 -> 496 | E14: ='Záznamy hry'!$B$48 -> Chalaš Jaroslav | F14: ='Záznamy hry'!$R$48 -> 513 | G14: ='Záznamy hry'!$B$49 -> Štefan Jan | H14: ='Záznamy hry'!$R$49 -> 532 | I14: ='Záznamy hry'!$B$50 -> Kopic Jindra | J14: ='Záznamy hry'!$R$50 -> 525 | K14: ='Záznamy hry'!$S$47 -> 2066
A15: 14. | B15: ='Záznamy hry'!$A$75 -> Chýnov B | C15: ='Záznamy hry'!$B$75 -> Burdová Vendulka | D15: ='Záznamy hry'!$R$75 -> 522 | E15: ='Záznamy hry'!$B$76 -> Kovandová Tereza | F15: ='Záznamy hry'!$R$76 -> 499 | G15: ='Záznamy hry'!$B$77 -> Návarová Věra | H15: ='Záznamy hry'!$R$77 -> 528 | I15: ='Záznamy hry'!$B$78 -> Kovandová Alena | J15: ='Záznamy hry'!$R$78 -> 511 | K15: ='Záznamy hry'!$S$75 -> 2060
A16: 15. | B16: ='Záznamy hry'!$A$19 -> Sokol Chotoviny C | C16: ='Záznamy hry'!$B$19 -> Svačina Jiří | D16: ='Záznamy hry'!$R$19 -> 533 | E16: ='Záznamy hry'!$B$20 -> Chobotský Jan | F16: ='Záznamy hry'!$R$20 -> 480 | G16: ='Záznamy hry'!$B$21 -> Svatošová Iva | H16: ='Záznamy hry'!$R$21 -> 524 | I16: ='Záznamy hry'!$B$22 -> Kučerová Gabriela | J16: ='Záznamy hry'!$R$22 -> 500 | K16: ='Záznamy hry'!$S$19 -> 2037
A17: 16. | B17: ='Záznamy hry'!$A$71 -> Trhové Sviny B | C17: ='Záznamy hry'!$B$71 -> Vychodil Jaroslav | D17: ='Záznamy hry'!$R$71 -> 527 | E17: ='Záznamy hry'!$B$72 -> Dvořák Jan | F17: ='Záznamy hry'!$R$72 -> 489 | G17: ='Záznamy hry'!$B$73 -> Vávra František | H17: ='Záznamy hry'!$R$73 -> 492 | I17: ='Záznamy hry'!$B$74 -> Svoboda Josef | J17: ='Záznamy hry'!$R$74 -> 445 | K17: ='Záznamy hry'!$S$71 -> 1953
A18: 17. | B18: ='Záznamy hry'!$A$67 -> Trhové Sviny A | C18: ='Záznamy hry'!$B$67 -> Kříha Vlastimil | D18: ='Záznamy hry'!$R$67 -> 469 | E18: ='Záznamy hry'!$B$68 -> Kroupová Daniela | F18: ='Záznamy hry'!$R$68 -> 516 | G18: ='Záznamy hry'!$B$69 -> Votruba Jan | H18: ='Záznamy hry'!$R$69 -> 472 | I18: ='Záznamy hry'!$B$70 -> Kroupa Bedřich | J18: ='Záznamy hry'!$R$70 -> 476 | K18: ='Záznamy hry'!$S$67 -> 1933
A19: 18. | B19: ='Záznamy hry'!$A$35 -> Sokol Chýnov A | C19: ='Záznamy hry'!$B$35 -> Mašková Blanka | D19: ='Záznamy hry'!$R$35 -> 594 | E19: ='Záznamy hry'!$B$36 -> Roubková Blanka | F19: ='Záznamy hry'!$R$36 -> 442 | G19: ='Záznamy hry'!$B$37 -> Hanzálková Libuše | H19: ='Záznamy hry'!$R$37 -> 463 | I19: ='Záznamy hry'!$B$38 -> Šedivcová Jitka | J19: ='Záznamy hry'!$R$38 -> 395 | K19: ='Záznamy hry'!$S$35 -> 1894
A20: 19. | B20: ='Záznamy hry'!$A$11 -> SK Meteor Praha | C20: ='Záznamy hry'!$B$11 -> Zahrádka Ladislav | D20: ='Záznamy hry'!$R$11 -> 491 | E20: ='Záznamy hry'!$B$12 -> Novotný Jiří | F20: ='Záznamy hry'!$R$12 -> 509 | G20: ='Záznamy hry'!$B$13 -> Pozner Jan | H20: ='Záznamy hry'!$R$13 -> 433 | I20: ='Záznamy hry'!$B$14 -> Bernátek Bedřich | J20: ='Záznamy hry'!$R$14 -> 457 | K20: ='Záznamy hry'!$S$11 -> 1890
A21: 20. | B21: ='Záznamy hry'!$A$15 -> Kulidraci Praha | C21: ='Záznamy hry'!$B$15 -> Šostý Miroslav | D21: ='Záznamy hry'!$R$15 -> 495 | E21: ='Záznamy hry'!$B$16 -> Hrbek Ivan | F21: ='Záznamy hry'!$R$16 -> 441 | G21: ='Záznamy hry'!$B$17 -> Březina Rudolf | H21: ='Záznamy hry'!$R$17 -> 414 | I21: ='Záznamy hry'!$B$18 -> Zdráhalová Martina | J21: ='Záznamy hry'!$R$18 -> 415 | K21: ='Záznamy hry'!$S$15 -> 1765

Sheet Záznamy hry
A1: Družstvo | B1: Hráč | C1: Dráha 1. | F1: Dráha 2. | I1: Dráha 3. | L1: Dráha 4. | O1: CELKEM HRÁČ | R1: VÝKON HRÁČE | S1: CELKEM DRUŽSTVO
C2: Plné | D2: Dor. | E2: Chyby | F2: Plné | G2: Dor. | H2: Chyby | I2: Plné | J2: Dor. | K2: Chyby | L2: Plné | M2: Dor. | N2: Chyby | O2: Plné | P2: Dor. | Q2: Chyby
A3: Sokol Chotoviny A | B3: Hein Zbyněk | C3: 87 | D3: 36 | E3: 2 | F3: 100 | G3: 52 | H3: 1 | I3: 94 | J3: 42 | K3: 1 | L3: 93 | M3: 45 | N3: 3 | O3: =C3+F3+I3+L3 -> 374 | P3: =D3+G3+J3+M3 -> 175 | Q3: =E3+H3+K3+N3 -> 7 | R3: =O3+P3 -> 549 | S3: =R3+R4+R5+R6 -> 2152
B4: Fořter Jan | C4: 92 | D4: 50 | E4: 2 | F4: 91 | G4: 54 | H4: 2 | I4: 90 | J4: 45 | K4: 1 | L4: 96 | M4: 31 | N4: 2 | O4: =C4+F4+I4+L4 -> 369 | P4: =D4+G4+J4+M4 -> 180 | Q4: =E4+H4+K4+N4 -> 7 | R4: =O4+P4 -> 549
B5: Hrstka Libor | C5: 85 | D5: 41 | E5: 1 | F5: 88 | G5: 53 | H5: 3 | I5: 88 | J5: 52 | K5: 0 | L5: 86 | M5: 32 | N5: 3 | O5: 347 | P5: 178 | Q5: 7 | R5: 525
B6: Bartoň Jan | C6: 97 | D6: 32 | E6: 3 | F6: 91 | G6: 40 | H6: 2 | I6: 86 | J6: 45 | K6: 1 | L6: 95 | M6: 43 | N6: 0 | O6: 369 | P6: 160 | Q6: 6 | R6: 529
A7: Slovan Kamenice n/Lipou | B7: Ouhel Jiří . | C7: 95 | D7: 45 | E7: 2 | F7: 99 | G7: 35 | H7: 3 | I7: 97 | J7: 54 | K7: 1 | L7: 91 | M7: 58 | N7: 0 | O7: 382 | P7: 192 | Q7: 6 | R7: 574 | S7: =R7+R8+R9+R10 -> 2264
B8: Dúška Karel | C8: 86 | D8: 36 | E8: 0 | F8: 95 | G8: 50 | H8: 1 | I8: 88 | J8: 52 | K8: 1 | L8: 88 | M8: 44 | N8: 0 | O8: 357 | P8: 182 | Q8: 2 | R8: 539
B9: Dúška David | C9: 98 | D9: 53 | E9: 0 | F9: 100 | G9: 44 | H9: 1 | I9: 90 | J9: 50 | K9: 0 | L9: 95 | M9: 62 | N9: 0 | O9: 383 | P9: 209 | Q9: 1 | R9: 592
B10: Ouhel Jakub | C10: 88 | D10: 44 | E10: 0 | F10: 99 | G10: 45 | H10: 2 | I10: 94 | J10: 54 | K10: 0 | L10: 94 | M10: 41 | N10: 2 | O10: 375 | P10: 184 | Q10: 4 | R10: 559
A11: SK Meteor Praha | B11: Zahrádka Ladislav | C11: 87 | D11: 36 | E11: 2 | F11: 75 | G11: 34 | H11: 4 | I11: 90 | J11: 26 | K11: 4 | L11: 93 | M11: 50 | N11: 0 | O11: 345 | P11: 146 | Q11: 10 | R11: 491 | S11: =R11+R12+R13+R14 -> 1890
B12: Novotný Jiří | C12: 88 | D12: 40 | E12: 3 | F12: 80 | G12: 44 | H12: 3 | I12: 89 | J12: 45 | K12: 2 | L12: 87 | M12: 36 | N12: 3 | O12: 344 | P12: 165 | Q12: 11 | R12: 509
B13: Pozner Jan | C13: 87 | D13: 33 | E13: 3 | F13: 78 | G13: 26 | H13: 5 | I13: 88 | J13: 27 | K13: 6 | L13: 71 | M13: 23 | N13: 5 | O13: 324 | P13: 109 | Q13: 19 | R13: 433
B14: Bernátek Bedřich | C14: 94 | D14: 26 | E14: 5 | F14: 77 | G14: 43 | H14: 1 | I14: 84 | J14: 34 | K14: 7 | L14: 63 | M14: 36 | N14: 1 | O14: 318 | P14: 139 | Q14: 14 | R14: 457
A15: Kulidraci Praha | B15: Šostý Miroslav | C15: 84 | D15: 18 | E15: 6 | F15: 92 | G15: 44 | H15: 2 | I15: 90 | J15: 43 | K15: 1 | L15: 81 | M15: 43 | N15: 2 | O15: 347 | P15: 148 | Q15: 11 | R15: 495 | S15: =R15+R16+R17+R18 -> 1765
B16: Hrbek Ivan | C16: 75 | D16: 25 | E16: 6 | F16: 96 | G16: 31 | H16: 2 | I16: 79 | J16: 26 | K16: 8 | L16: 76 | M16: 33 | N16: 3 | O16: 326 | P16: 115 | Q16: 19 | R16: 441
B17: Březina Rudolf | C17: 67 | D17: 27 | E17: 6 | F17: 83 | G17: 33 | H17: 4 | I17: 76 | J17: 24 | K17: 3 | L17: 71 | M17: 33 | N17: 6 | O17: 297 | P17: 117 | Q17: 19 | R17: 414
B18: Zdráhalová Martina | C18: 86 | D18: 24 | E18: 5 | F18: 72 | G18: 18 | H18: 6 | I18: 67 | J18: 26 | K18: 5 | L18: 80 | M18: 42 | N18: 0 | O18: 305 | P18: 110 | Q18: 16 | R18: 415
A19: Sokol Chotoviny C | B19: Svačina Jiří | C19: 88 | D19: 45 | E19: 0 | F19: 84 | G19: 51 | H19: 0 | I19: 84 | J19: 44 | K19: 1 | L19: 84 | M19: 53 | N19: 1 | O19: 340 | P19: 193 | Q19: 2 | R19: 533 | S19: =R19+R20+R21+R22 -> 2037
B20: Chobotský Jan | C20: 94 | D20: 35 | E20: 1 | F20: 84 | G20: 27 | H20: 4 | I20: 88 | J20: 27 | K20: 3 | L20: 90 | M20: 35 | N20: 4 | O20: 356 | P20: 124 | Q20: 12 | R20: 480
B21: Svatošová Iva | C21: 107 | D21: 44 | E21: 1 | F21: 95 | G21: 34 | H21: 2 | I21: 87 | J21: 45 | K21: 1 | L21: 78 | M21: 34 | N21: 2 | O21: 367 | P21: 157 | Q21: 6 | R21: 524
B22: Kučerová Gabriela | C22: 94 | D22: 45 | E22: 1 | F22: 89 | G22: 25 | H22: 3 | I22: 89 | J22: 44 | K22: 2 | L22: 81 | M22: 33 | N22: 3 | O22: 353 | P22: 147 | Q22: 9 | R22: 500
A23: České Velenice | B23: Dvořák Zdeněk | C23: 95 | D23: 68 | E23: 0 | F23: 91 | G23: 36 | H23: 0 | I23: 86 | J23: 34 | K23: 3 | L23: 110 | M23: 68 | N23: 0 | O23: 382 | P23: 206 | Q23: 3 | R23: 588 | S23: =R23+R24+R25+R26 -> 2211
B24: Dvořák Miroslav | C24: 100 | D24: 68 | E24: 0 | F24: 95 | G24: 41 | H24: 2 | I24: 94 | J24: 35 | K24: 2 | L24: 82 | M24: 43 | N24: 2 | O24: 371 | P24: 187 | Q24: 6 | R24: 558
B25: Dvořák Zbyněk | C25: 91 | D25: 45 | E25: 1 | F25: 102 | G25: 44 | H25: 1 | I25: 83 | J25: 50 | K25: 1 | L25: 96 | M25: 44 | N25: 0 | O25: 372 | P25: 183 | Q25: 3 | R25: 555
B26: Dvořáková Kamila | C26: 86 | D26: 35 | E26: 1 | F26: 86 | G26: 40 | H26: 0 | I26: 88 | J26: 43 | K26: 2 | L26: 91 | M26: 41 | N26: 1 | O26: 351 | P26: 159 | Q26: 4 | R26: 510
A27: KK Hilton Sezimovo Ústí | B27: Vrbík Pavel | C27: 89 | D27: 51 | E27: 2 | F27: 86 | G27: 60 | H27: 0 | I27: 89 | J27: 41 | K27: 0 | L27: 92 | M27: 35 | N27: 1 | O27: 356 | P27: 187 | Q27: 3 | R27: 543 | S27: =R27+R28+R29+R30 -> 2195
B28: Jelínek Dušan | C28: 87 | D28: 42 | E28: 1 | F28: 69 | G28: 35 | H28: 2 | I28: 78 | J28: 45 | K28: 4 | L28: 89 | M28: 54 | N28: 1 | O28: 323 | P28: 176 | Q28: 8 | R28: 499
B29: Mikuláštík Michal | C29: 88 | D29: 32 | E29: 6 | F29: 104 | G29: 54 | H29: 0 | I29: 86 | J29: 33 | K29: 3 | L29: 99 | M29: 35 | N29: 3 | O29: 377 | P29: 154 | Q29: 12 | R29: 531
B30: Novák Jan | C30: 95 | D30: 72 | E30: 1 | F30: 96 | G30: 52 | H30: 1 | I30: 102 | J30: 61 | K30: 0 | L30: 91 | M30: 53 | N30: 0 | O30: 384 | P30: 238 | Q30: 2 | R30: 622
A31: TJ Blatná | B31: Kobliha Vítek | C31: 88 | D31: 36 | E31: 1 | F31: 89 | G31: 52 | H31: 1 | I31: 88 | J31: 54 | K31: 0 | L31: 88 | M31: 49 | N31: 0 | O31: 353 | P31: 191 | Q31: 2 | R31: 544 | S31: =R31+R32+R33+R34 -> 2077
B32: Kníže Stanislav | C32: 90 | D32: 27 | E32: 0 | F32: 84 | G32: 42 | H32: 4 | I32: 85 | J32: 51 | K32: 0 | L32: 87 | M32: 43 | N32: 2 | O32: 346 | P32: 163 | Q32: 6 | R32: 509
B33: Vokurka Jiří | C33: 96 | D33: 43 | E33: 1 | F33: 94 | G33: 35 | H33: 3 | I33: 83 | J33: 36 | K33: 3 | L33: 89 | M33: 36 | N33: 0 | O33: 362 | P33: 150 | Q33: 7 | R33: 512
B34: Mikeš Josef | C34: 84 | D34: 31 | E34: 3 | F34: 98 | G34: 43 | H34: 0 | I34: 99 | J34: 36 | K34: 1 | L34: 88 | M34: 33 | N34: 3 | O34: 369 | P34: 143 | Q34: 7 | R34: 512
A35: Sokol Chýnov A | B35: Mašková Blanka | C35: 92 | D35: 45 | E35: 1 | F35: 107 | G35: 62 | H35: 2 | I35: 104 | J35: 42 | K35: 1 | L35: 98 | M35: 44 | N35: 0 | O35: 401 | P35: 193 | Q35: 4 | R35: 594 | S35: =R35+R36+R37+R38 -> 1894
B36: Roubková Blanka | C36: 88 | D36: 17 | E36: 8 | F36: 75 | G36: 51 | H36: 1 | I36: 70 | J36: 42 | K36: 3 | L36: 81 | M36: 18 | N36: 7 | O36: 314 | P36: 128 | Q36: 19 | R36: 442
B37: Hanzálková Libuše | C37: 88 | D37: 35 | E37: 5 | F37: 73 | G37: 36 | H37: 2 | I37: 75 | J37: 33 | K37: 6 | L37: 87 | M37: 36 | N37: 5 | O37: 323 | P37: 140 | Q37: 18 | R37: 463
B38: Šedivcová Jitka | C38: 69 | D38: 34 | E38: 3 | F38: 71 | G38: 27 | H38: 4 | I38: 58 | J38: 25 | K38: 8 | L38: 79 | M38: 32 | N38: 4 | O38: 277 | P38: 118 | Q38: 19 | R38: 395
A39: Sokol Chotoviny B | B39: Křemen Petr | C39: 82 | D39: 45 | E39: 1 | F39: 100 | G39: 44 | H39: 0 | I39: 96 | J39: 43 | K39: 3 | L39: 89 | M39: 41 | N39: 1 | O39: 367 | P39: 173 | Q39: 5 | R39: 540 | S39: =R39+R40+R41+R42 -> 2108
B40: Makovcová Alena | C40: 92 | D40: 41 | E40: 3 | F40: 83 | G40: 52 | H40: 2 | I40: 92 | J40: 35 | K40: 4 | L40: 89 | M40: 31 | N40: 6 | O40: 356 | P40: 159 | Q40: 15 | R40: 515
B41: Bartoň David | C41: 81 | D41: 61 | E41: 0 | F41: 89 | G41: 36 | H41: 3 | I41: 80 | J41: 43 | K41: 3 | L41: 81 | M41: 23 | N41: 6 | O41: 331 | P41: 163 | Q41: 12 | R41: 494
B42: Makovec Pavel | C42: 85 | D42: 60 | E42: 1 | F42: 88 | G42: 51 | H42: 0 | I42: 88 | J42: 54 | K42: 0 | L42: 90 | M42: 43 | N42: 0 | O42: 351 | P42: 208 | Q42: 1 | R42: 559
A43: KK Loko Tábor C | B43: Kučera Vladimír | C43: 103 | D43: 62 | E43: 1 | F43: 95 | G43: 51 | H43: 0 | I43: 86 | J43: 49 | K43: 2 | L43: 88 | M43: 53 | N43: 0 | O43: 372 | P43: 215 | Q43: 3 | R43: 587 | S43: =R43+R44+R45+R46 -> 2172
B44: Zeman Zdeněk | C44: 94 | D44: 53 | E44: 1 | F44: 91 | G44: 47 | H44: 0 | I44: 80 | J44: 43 | K44: 0 | L44: 87 | M44: 39 | N44: 1 | O44: 352 | P44: 182 | Q44: 2 | R44: 534
B45: Klimek Petr | C45: 97 | D45: 33 | E45: 3 | F45: 90 | G45: 43 | H45: 2 | I45: 89 | J45: 36 | K45: 1 | L45: 87 | M45: 43 | N45: 1 | O45: 363 | P45: 155 | Q45: 7 | R45: 518
B46: Kořínek Pavel | C46: 108 | D46: 34 | E46: 3 | F46: 94 | G46: 26 | H46: 5 | I46: 89 | J46: 51 | K46: 1 | L46: 95 | M46: 36 | N46: 2 | O46: 386 | P46: 147 | Q46: 11 | R46: 533
A47: Spartak Soběslav | B47: Dudová Alena | C47: 89 | D47: 26 | E47: 8 | F47: 98 | G47: 33 | H47: 2 | I47: 99 | J47: 43 | K47: 2 | L47: 90 | M47: 18 | N47: 6 | O47: 376 | P47: 120 | Q47: 18 | R47: 496 | S47: =R47+R48+R49+R50 -> 2066
B48: Chalaš Jaroslav | C48: 85 | D48: 44 | E48: 4 | F48: 99 | G48: 35 | H48: 2 | I48: 81 | J48: 49 | K48: 1 | L48: 84 | M48: 36 | N48: 4 | O48: 349 | P48: 164 | Q48: 11 | R48: 513
B49: Štefan Jan | C49: 99 | D49: 35 | E49: 2 | F49: 80 | G49: 51 | H49: 1 | I49: 89 | J49: 36 | K49: 0 | L49: 89 | M49: 53 | N49: 0 | O49: 357 | P49: 175 | Q49: 3 | R49: 532
B50: Kopic Jindra | C50: 92 | D50: 36 | E50: 3 | F50: 82 | G50: 40 | H50: 1 | I50: 91 | J50: 51 | K50: 0 | L50: 97 | M50: 36 | N50: 2 | O50: 362 | P50: 163 | Q50: 6 | R50: =O50+P50 -> 525
A51: KK Loko Tábor B | B51: Kášek David | C51: 96 | D51: 48 | E51: 1 | F51: 106 | G51: 53 | H51: 1 | I51: 88 | J51: 44 | K51: 0 | L51: 94 | M51: 43 | N51: 2 | O51: =C51+F51+I51+L51 -> 384 | P51: =D51+G51+J51+M51 -> 188 | Q51: =E51+H51+K51+N51 -> 4 | R51: 572 | S51: =R51+R52+R53+R54 -> 2232
B52: Filakovský Martin | C52: 98 | D52: 53 | E52: 0 | F52: 94 | G52: 44 | H52: 1 | I52: 97 | J52: 54 | K52: 0 | L52: 87 | M52: 50 | N52: 1 | O52: 376 | P52: 201 | Q52: 2 | R52: 577
B53: Roubek Oldřich | C53: 81 | D53: 44 | E53: 2 | F53: 93 | G53: 54 | H53: 1 | I53: 84 | J53: 44 | K53: 0 | L53: 93 | M53: 32 | N53: 2 | O53: 351 | P53: 174 | Q53: 5 | R53: 525
B54: Bystřický Petr | C54: 91 | D54: 53 | E54: 1 | F54: 99 | G54: 51 | H54: 2 | I54: 87 | J54: 42 | K54: 1 | L54: 93 | M54: 42 | N54: 0 | O54: 370 | P54: 188 | Q54: 4 | R54: =O54+P54 -> 558
A55: KK Loko Tábor A | B55: Takáč Ladislav | C55: 95 | D55: 57 | E55: 0 | F55: 97 | G55: 43 | H55: 0 | I55: 84 | J55: 60 | K55: 0 | L55: 101 | M55: 44 | N55: 2 | O55: =C55+F55+I55+L55 -> 377 | P55: =D55+G55+J55+M55 -> 204 | Q55: =E55+H55+K55+N55 -> 2 | R55: 581 | S55: =R55+R56+R57+R58 -> 2262
B56: Chval Petr | C56: 89 | D56: 53 | E56: 1 | F56: 85 | G56: 45 | H56: 1 | I56: 92 | J56: 42 | K56: 1 | L56: 103 | M56: 36 | N56: 0 | O56: 369 | P56: 176 | Q56: 3 | R56: 545
B57: Smažík Karel | C57: 97 | D57: 54 | E57: 0 | F57: 84 | G57: 54 | H57: 2 | I57: 97 | J57: 52 | K57: 1 | L57: 93 | M57: 45 | N57: 0 | O57: 371 | P57: 205 | Q57: 3 | R57: 576
B58: Jelínek Bořivoj | C58: 97 | D58: 52 | E58: 1 | F58: 100 | G58: 42 | H58: 1 | I58: 89 | J58: 45 | K58: 0 | L58: 83 | M58: 52 | N58: 2 | O58: 369 | P58: 191 | Q58: 4 | R58: =O58+P58 -> 560
A59: Borovany | B59: Soukup Martin | C59: 109 | D59: 53 | E59: 2 | F59: 96 | G59: 35 | H59: 4 | I59: 87 | J59: 44 | K59: 0 | L59: 95 | M59: 45 | N59: 0 | O59: 387 | P59: 177 | Q59: 6 | R59: 564 | S59: =R59+R60+R61+R62 -> 2140
B60: Šimková Jitka | C60: 91 | D60: 54 | E60: 1 | F60: 82 | G60: 45 | H60: 1 | I60: 87 | J60: 31 | K60: 4 | L60: 85 | M60: 51 | N60: 2 | O60: 345 | P60: 181 | Q60: 8 | R60: 526
B61: Siebenbrunner Čestm. | C61: 80 | D61: 49 | E61: 0 | F61: 98 | G61: 27 | H61: 2 | I61: 89 | J61: 51 | K61: 2 | L61: 97 | M61: 34 | N61: 3 | O61: 364 | P61: 161 | Q61: 7 | R61: 525
B62: Malovaný Jiří | C62: 93 | D62: 34 | E62: 1 | F62: 85 | G62: 57 | H62: 1 | I62: 85 | J62: 43 | K62: 2 | L62: 94 | M62: 34 | N62: 4 | O62: 357 | P62: 168 | Q62: 8 | R62: 525
A63: Písek | B63: Korecká Jitka | C63: 83 | D63: 49 | E63: 0 | F63: 98 | G63: 36 | H63: 2 | I63: 99 | J63: 43 | K63: 1 | L63: 88 | M63: 44 | N63: 0 | O63: 368 | P63: 172 | Q63: 3 | R63: 540 | S63: =R63+R64+R65+R66 -> 2089
B64: Kolařík Petr | C64: 86 | D64: 43 | E64: 0 | F64: 83 | G64: 35 | H64: 3 | I64: 80 | J64: 34 | K64: 3 | L64: 79 | M64: 33 | N64: 1 | O64: 328 | P64: 145 | Q64: 7 | R64: 473
B65: Koubek Karel | C65: 91 | D65: 45 | E65: 1 | F65: 105 | G65: 35 | H65: 3 | I65: 83 | J65: 54 | K65: 0 | L65: 89 | M65: 35 | N65: 3 | O65: 368 | P65: 169 | Q65: 7 | R65: 537
B66: Nedomová Drahomíra | C66: 94 | D66: 35 | E66: 5 | F66: 87 | G66: 43 | H66: 1 | I66: 102 | J66: 45 | K66: 1 | L66: 97 | M66: 36 | N66: 2 | O66: 380 | P66: 159 | Q66: 9 | R66: 539
A67: Trhové Sviny A | B67: Kříha Vlastimil | C67: 95 | D67: 14 | E67: 8 | F67: 88 | G67: 33 | H67: 4 | I67: 90 | J67: 24 | K67: 5 | L67: 90 | M67: 35 | N67: 3 | O67: 363 | P67: 106 | Q67: 20 | R67: 469 | S67: =R67+R68+R69+R70 -> 1933
B68: Kroupová Daniela | C68: 85 | D68: 36 | E68: 3 | F68: 101 | G68: 44 | H68: 3 | I68: 91 | J68: 40 | K68: 2 | L68: 84 | M68: 35 | N68: 4 | O68: 361 | P68: 155 | Q68: 12 | R68: 516
B69: Votruba Jan | C69: 81 | D69: 34 | E69: 3 | F69: 81 | G69: 24 | H69: 7 | I69: 81 | J69: 36 | K69: 2 | L69: 92 | M69: 43 | N69: 1 | O69: 335 | P69: 137 | Q69: 13 | R69: 472
B70: Kroupa Bedřich | C70: 74 | D70: 32 | E70: 6 | F70: 79 | G70: 50 | H70: 2 | I70: 86 | J70: 34 | K70: 3 | L70: 85 | M70: 36 | N70: 2 | O70: 324 | P70: 152 | Q70: 13 | R70: 476
A71: Trhové Sviny B | B71: Vychodil Jaroslav | C71: 84 | D71: 43 | E71: 0 | F71: 79 | G71: 44 | H71: 2 | I71: 91 | J71: 35 | K71: 1 | L71: 97 | M71: 54 | N71: 0 | O71: 351 | P71: 176 | Q71: 3 | R71: 527 | S71: =R71+R72+R73+R74 -> 1953
B72: Dvořák Jan | C72: 96 | D72: 43 | E72: 2 | F72: 86 | G72: 39 | H72: 1 | I72: 81 | J72: 27 | K72: 3 | L72: 82 | M72: 35 | N72: 3 | O72: 345 | P72: 144 | Q72: 9 | R72: 489
B73: Vávra František | C73: 81 | D73: 27 | E73: 4 | F73: 86 | G73: 34 | H73: 3 | I73: 92 | J73: 52 | K73: 1 | L73: 85 | M73: 35 | N73: 3 | O73: 344 | P73: 148 | Q73: 11 | R73: 492
B74: Svoboda Josef | C74: 71 | D74: 35 | E74: 1 | F74: 72 | G74: 25 | H74: 7 | I74: 82 | J74: 42 | K74: 1 | L74: 84 | M74: 34 | N74: 4 | O74: 309 | P74: 136 | Q74: 13 | R74: 445
A75: Chýnov B | B75: Burdová Vendulka | C75: 86 | D75: 41 | E75: 3 | F75: 91 | G75: 53 | H75: 1 | I75: 80 | J75: 44 | K75: 3 | L75: 94 | M75: 33 | N75: 1 | O75: =C75+F75+I75+L75 -> 351 | P75: =D75+G75+J75+M75 -> 171 | Q75: =E75+H75+K75+N75 -> 8 | R75: =O75+P75 -> 522 | S75: =R75+R76+R77+R78 -> 2060
B76: Kovandová Tereza | C76: 88 | D76: 35 | E76: 4 | F76: 86 | G76: 33 | H76: 4 | I76: 89 | J76: 50 | K76: 2 | L76: 82 | M76: 36 | N76: 1 | O76: 345 | P76: 154 | Q76: 11 | R76: 499
B77: Návarová Věra | C77: 88 | D77: 50 | E77: 2 | F77: 84 | G77: 45 | H77: 1 | I77: 97 | J77: 34 | K77: 2 | L77: 88 | M77: 42 | N77: 2 | O77: 357 | P77: 171 | Q77: 7 | R77: 528
B78: Kovandová Alena | C78: 84 | D78: 34 | E78: 2 | F78: 95 | G78: 36 | H78: 0 | I78: 84 | J78: 54 | K78: 2 | L78: 92 | M78: 32 | N78: 6 | O78: 355 | P78: 156 | Q78: 10 | R78: 511
A79: Jiskra Nová Bystřice | B79: Chvátal Marek | C79: 94 | D79: 45 | E79: 3 | F79: 99 | G79: 43 | H79: 1 | I79: 95 | J79: 36 | K79: 1 | L79: 93 | M79: 45 | N79: 1 | O79: 381 | P79: 169 | Q79: 6 | R79: 550 | S79: =R79+R80+R81+R82 -> 2107
B80: Pýchová Barbora | C80: 87 | D80: 44 | E80: 1 | F80: 92 | G80: 53 | H80: 2 | I80: 101 | J80: 44 | K80: 0 | L80: 83 | M80: 43 | N80: 1 | O80: 363 | P80: 184 | Q80: 4 | R80: 547
B81: Mertlová Petra | C81: 93 | D81: 27 | E81: 5 | F81: 84 | G81: 52 | H81: 1 | I81: 99 | J81: 45 | K81: 2 | L81: 100 | M81: 52 | N81: 0 | O81: 376 | P81: 176 | Q81: 8 | R81: 552
B82: Mertl Jiří | C82: 94 | D82: 17 | E82: 8 | F82: 91 | G82: 24 | H82: 5 | I82: 65 | J82: 36 | K82: 2 | L82: 89 | M82: 42 | N82: 4 | O82: 339 | P82: 119 | Q82: 19 | R82: 458
